Publisher Label,Publisher URI,"Supplier ID","Supplier","Invoice No.","Amount £","Purpose","Transaction Number","Payment Date","Organisational Unit","Cost Centre(T)","Internal Category Number"
"Wolverhampton City Council","http://opendatacommunities.org/id/metropolitan-district-council/wolverhampton","700194","Michelle Caney","INVMC25","700.00","Services - Professional Fees","130217425","30/05/2018","Legal Services","Centralised External Legal Costs","R4400"
"Wolverhampton City Council","http://opendatacommunities.org/id/metropolitan-district-council/wolverhampton","700194","Michelle Caney","INVMC26","787.50","Services - Professional Fees","130216159","16/05/2018","Legal Services","Centralised External Legal Costs","R4400"
"Wolverhampton City Council","http://opendatacommunities.org/id/metropolitan-district-council/wolverhampton","700264","Acorn Environmental Mgt Group Limited","11472","700.00","Grounds Maintenance - Contract","130217012","30/05/2018","Visitor Economy","Northicote Farm","R2075"
"Wolverhampton City Council","http://opendatacommunities.org/id/metropolitan-district-council/wolverhampton","700264","Acorn Environmental Mgt Group Limited","11367","300.00","Grounds Maintenance - Contract","130214964","09/05/2018","Visitor Economy","Northicote Farm","R2075"
"Wolverhampton City Council","http://opendatacommunities.org/id/metropolitan-district-council/wolverhampton","700264","Acorn Environmental Mgt Group Limited","11374","1,380.00","Construction and Conversion","130214917","04/05/2018","-","GF - Blue Network","C1100"
"Wolverhampton City Council","http://opendatacommunities.org/id/metropolitan-district-council/wolverhampton","700264","Acorn Environmental Mgt Group Limited","11387","663.14","Grounds Maintenance - Contract","130214966","30/05/2018","Environmental Maintenance","Arbor Scheme","R2075"
"Wolverhampton City Council","http://opendatacommunities.org/id/metropolitan-district-council/wolverhampton","700264","Acorn Environmental Mgt Group Limited","11376","850.00","Grounds Maintenance - Contract","130214965","04/05/2018","Visitor Economy","Northicote Farm","R2075"
"Wolverhampton City Council","http://opendatacommunities.org/id/metropolitan-district-council/wolverhampton","700264","Acorn Environmental Mgt Group Limited","11471","625.00","Grounds Maintenance - Contract","130217011","30/05/2018","Visitor Economy","Northicote Farm","R2075"
"Wolverhampton City Council","http://opendatacommunities.org/id/metropolitan-district-council/wolverhampton","700341","Acs Business Supplies Limited","SINV00442257","26.41","Equipment - Purchase","130214689","23/05/2018","Early Intervention","EIP Locality 4 - Bingley","R4000"
"Wolverhampton City Council","http://opendatacommunities.org/id/metropolitan-district-council/wolverhampton","700341","Acs Business Supplies Limited","SINV00442255","315.01","Stationery","130214919","23/05/2018","Legal Services","Legal Services","R4308"
"Wolverhampton City Council","http://opendatacommunities.org/id/metropolitan-district-council/wolverhampton","700341","Acs Business Supplies Limited","SINV00444223","25.55","Stationery","130215772","30/05/2018","Corporate Asset Management","Strategic Asset Management Team","R4308"
"Wolverhampton City Council","http://opendatacommunities.org/id/metropolitan-district-council/wolverhampton","700341","Acs Business Supplies Limited","SCRN00054643","-71.30","Stationery","130217013","30/05/2018","Community Financial Support","Financial Assessments","R4308"
"Wolverhampton City Council","http://opendatacommunities.org/id/metropolitan-district-council/wolverhampton","700341","Acs Business Supplies Limited","SINV00440412","69.76","Stationery","130213679","09/05/2018","Independent Living Service","Independent Living Service","R4308"
"Wolverhampton City Council","http://opendatacommunities.org/id/metropolitan-district-council/wolverhampton","700341","Acs Business Supplies Limited","SINV00440868","33.98","Stationery","130213921","16/05/2018","Looked After Children","Adoption and Residence Team & Allowances","R4308"
"Wolverhampton City Council","http://opendatacommunities.org/id/metropolitan-district-council/wolverhampton","700341","Acs Business Supplies Limited","SINV00440873","170.13","Stationery","130213924","16/05/2018","Skills","IMPACT","R4308"
"Wolverhampton City Council","http://opendatacommunities.org/id/metropolitan-district-council/wolverhampton","700341","Acs Business Supplies Limited","SINV00440875","13.96","Stationery","130213926","16/05/2018","Public Service Reform","Local Government Elections","R4308"
"Wolverhampton City Council","http://opendatacommunities.org/id/metropolitan-district-council/wolverhampton","700341","Acs Business Supplies Limited","SINV00441420","84.64","Stationery","130214228","16/05/2018","Skills","IMPACT","R4308"
"Wolverhampton City Council","http://opendatacommunities.org/id/metropolitan-district-council/wolverhampton","700341","Acs Business Supplies Limited","SINV00440569","52.90","Stationery","130213805","11/05/2018","Specialist Support","Head of Service Specialist Intensive Support Service","R4308"
"Wolverhampton City Council","http://opendatacommunities.org/id/metropolitan-district-council/wolverhampton","700341","Acs Business Supplies Limited","SINV00417893","2,230.57","Stationery","130198159","25/05/2018","Adult Education","Service Wide","R4308"
"Wolverhampton City Council","http://opendatacommunities.org/id/metropolitan-district-council/wolverhampton","700341","Acs Business Supplies Limited","SCRN00054097","-65.36","Stationery","130214079","04/05/2018","Independent Living Service","Independent Living Service","R4308"
"Wolverhampton City Council","http://opendatacommunities.org/id/metropolitan-district-council/wolverhampton","700341","Acs Business Supplies Limited","SINV00439255","89.95","Stationery","130212723","04/05/2018","ICTS","Strategic ICTS (ICT Service Budget)","R4308"
"Wolverhampton City Council","http://opendatacommunities.org/id/metropolitan-district-council/wolverhampton","700341","Acs Business Supplies Limited","SINV00442254","173.73","Stationery","130214918","23/05/2018","Strategic Organisation Development","Global Budgets","R4308"
"Wolverhampton City Council","http://opendatacommunities.org/id/metropolitan-district-council/wolverhampton","700341","Acs Business Supplies Limited","SINV00442258","23.96","Stationery","130214690","23/05/2018","Environmental Maintenance","Ground Maintenance East","R4308"
"Wolverhampton City Council","http://opendatacommunities.org/id/metropolitan-district-council/wolverhampton","700341","Acs Business Supplies Limited","SINV00441415","72.46","Stationery","130214224","16/05/2018","Bereavement Services","Cemeteries","R4308"
"Wolverhampton City Council","http://opendatacommunities.org/id/metropolitan-district-council/wolverhampton","700341","Acs Business Supplies Limited","SINV00441423","19.72","Stationery","130214231","16/05/2018","Adults Assessment & Care Management West","Adult Services � West","R4308"
"Wolverhampton City Council","http://opendatacommunities.org/id/metropolitan-district-council/wolverhampton","700341","Acs Business Supplies Limited","SINV00440867","179.99","Stationery","130213920","16/05/2018","Adult Education","Service Wide","R4308"
"Wolverhampton City Council","http://opendatacommunities.org/id/metropolitan-district-council/wolverhampton","700341","Acs Business Supplies Limited","SINV00443667","330.84","Stationery","130215341","25/05/2018","Public Service Reform","Members Expenses","R4308"
"Wolverhampton City Council","http://opendatacommunities.org/id/metropolitan-district-council/wolverhampton","700341","Acs Business Supplies Limited","SINV00440411","71.61","Stationery","130213678","09/05/2018","Independent Living Service","Independent Living Service","R4308"
"Wolverhampton City Council","http://opendatacommunities.org/id/metropolitan-district-council/wolverhampton","700341","Acs Business Supplies Limited","SCRN00054141","-50.00","Stationery","130213285","09/05/2018","Healthier Places Service","Healthy Lifestyles Team","R4308"
"Wolverhampton City Council","http://opendatacommunities.org/id/metropolitan-district-council/wolverhampton","700341","Acs Business Supplies Limited","SINV00441419","11.32","Stationery","130214227","30/05/2018","Community Financial Support","Macmillan Welfare Rights Service","R4308"
"Wolverhampton City Council","http://opendatacommunities.org/id/metropolitan-district-council/wolverhampton","700341","Acs Business Supplies Limited","SINV00438928","187.96","Stationery","130212722","02/05/2018","Public Service Reform","Register Office","R4308"
"Wolverhampton City Council","http://opendatacommunities.org/id/metropolitan-district-council/wolverhampton","700341","Acs Business Supplies Limited","SCRN00054587","-249.90","Stationery","130215492","30/05/2018","Parking Services","Car Parks Operational Staff","R4308"
"Wolverhampton City Council","http://opendatacommunities.org/id/metropolitan-district-council/wolverhampton","700341","Acs Business Supplies Limited","SINV00443162","49.22","Stationery","130215339","25/05/2018","Strategic Organisation Development","Global Budgets","R4308"
"Wolverhampton City Council","http://opendatacommunities.org/id/metropolitan-district-council/wolverhampton","700341","Acs Business Supplies Limited","SCRN00053857","-21.80","Stationery","130214967","04/05/2018","Specialist Support","Upper Pendeford Farm Short Breaks Centre","R4308"
"Wolverhampton City Council","http://opendatacommunities.org/id/metropolitan-district-council/wolverhampton","700341","Acs Business Supplies Limited","SINV00406488","192.10","Stationery","130214381","04/05/2018","Early Intervention","EIP Locality 3 - Graiseley","R4308"
"Wolverhampton City Council","http://opendatacommunities.org/id/metropolitan-district-council/wolverhampton","700341","Acs Business Supplies Limited","SINV00442261","48.54","Stationery","130214693","23/05/2018","School Planning & Resources","Education Data Services","R4308"
"Wolverhampton City Council","http://opendatacommunities.org/id/metropolitan-district-council/wolverhampton","700341","Acs Business Supplies Limited","SINV00442259","107.02","Stationery","130214691","23/05/2018","Public Service Reform","Local Government Elections","R4308"
"Wolverhampton City Council","http://opendatacommunities.org/id/metropolitan-district-council/wolverhampton","700341","Acs Business Supplies Limited","SINV00441417","11.12","Stationery","130214225","16/05/2018","Parking Services","Parking Enforcement","R4308"
"Wolverhampton City Council","http://opendatacommunities.org/id/metropolitan-district-council/wolverhampton","700341","Acs Business Supplies Limited","SINV00441417","249.90","Stationery","130214225","16/05/2018","Parking Services","Car Parks Operational Staff","R4308"
"Wolverhampton City Council","http://opendatacommunities.org/id/metropolitan-district-council/wolverhampton","700341","Acs Business Supplies Limited","SINV00441422","3.80","Stationery","130214230","16/05/2018","Emergency Duty Team","Emergency Duty Team","R4308"
"Wolverhampton City Council","http://opendatacommunities.org/id/metropolitan-district-council/wolverhampton","700341","Acs Business Supplies Limited","SINV00440874","62.17","Stationery","130213925","16/05/2018","Looked After Children","Fostering Team & Allowances","R4308"
"Wolverhampton City Council","http://opendatacommunities.org/id/metropolitan-district-council/wolverhampton","700341","Acs Business Supplies Limited","SINV00415135","157.84","Stationery","130196688","02/05/2018","Independent Living Service","Independent Living Service","R4308"
"Wolverhampton City Council","http://opendatacommunities.org/id/metropolitan-district-council/wolverhampton","700341","Acs Business Supplies Limited","SINV00441418","41.48","Stationery","130214226","30/05/2018","Community Financial Support","Macmillan Welfare Rights Service","R4308"
"Wolverhampton City Council","http://opendatacommunities.org/id/metropolitan-district-council/wolverhampton","700341","Acs Business Supplies Limited","SINV00444222","101.30","Stationery","130215771","30/05/2018","Bereavement Services","Cemeteries","R4308"
"Wolverhampton City Council","http://opendatacommunities.org/id/metropolitan-district-council/wolverhampton","700341","Acs Business Supplies Limited","SCRN00054576","-23.96","Stationery","130216654","30/05/2018","Environmental Maintenance","Ground Maintenance East","R4308"
"Wolverhampton City Council","http://opendatacommunities.org/id/metropolitan-district-council/wolverhampton","700341","Acs Business Supplies Limited","SINV00443762","23.96","Stationery","130215343","25/05/2018","Environmental Maintenance","Ground Maintenance East","R4308"
"Wolverhampton City Council","http://opendatacommunities.org/id/metropolitan-district-council/wolverhampton","700341","Acs Business Supplies Limited","SINV00440567","156.21","Stationery","130213804","11/05/2018","Leisure Services","Bert Williams Leisure Centre","R4308"
"Wolverhampton City Council","http://opendatacommunities.org/id/metropolitan-district-council/wolverhampton","700341","Acs Business Supplies Limited","SINV00438079","19.90","Stationery","130211733","04/05/2018","Adult Education","Service Wide","R4308"
"Wolverhampton City Council","http://opendatacommunities.org/id/metropolitan-district-council/wolverhampton","700341","Acs Business Supplies Limited","SINV00440870","12.99","Stationery","130213923","16/05/2018","Central Corporate Budgets","Miscellaneous Corporate Costs","R4308"
"Wolverhampton City Council","http://opendatacommunities.org/id/metropolitan-district-council/wolverhampton","700341","Acs Business Supplies Limited","SINV00440869","44.86","Stationery","130213922","16/05/2018","Early Intervention","EIP Locality 8 � Children�s Village","R4308"
"Wolverhampton City Council","http://opendatacommunities.org/id/metropolitan-district-council/wolverhampton","700341","Acs Business Supplies Limited","SINV00441424","80.04","Stationery","130214232","16/05/2018","Child Protection","CIN/CP Social Work Unit - Area 3","R4308"
"Wolverhampton City Council","http://opendatacommunities.org/id/metropolitan-district-council/wolverhampton","700341","Acs Business Supplies Limited","SINV00442256","78.30","Stationery","130214688","23/05/2018","Early Intervention","EIP Locality 3 - Graiseley","R4308"
"Wolverhampton City Council","http://opendatacommunities.org/id/metropolitan-district-council/wolverhampton","700341","Acs Business Supplies Limited","SINV00442260","57.84","Stationery","130214692","23/05/2018","Central Corporate Budgets","Miscellaneous Corporate Costs","R4308"
"Wolverhampton City Council","http://opendatacommunities.org/id/metropolitan-district-council/wolverhampton","700341","Acs Business Supplies Limited","SINV00439450","71.81","Stationery","130213045","09/05/2018","Looked After Children","LAC Education Team (LACE)","R4308"
"Wolverhampton City Council","http://opendatacommunities.org/id/metropolitan-district-council/wolverhampton","700341","Acs Business Supplies Limited","SINV00439451","24.60","Stationery","130213046","09/05/2018","Early Intervention","EIP Locality 7 � Low Hill","R4308"
"Wolverhampton City Council","http://opendatacommunities.org/id/metropolitan-district-council/wolverhampton","700341","Acs Business Supplies Limited","SINV00444221","107.06","Stationery","130215770","30/05/2018","Strategic Director Place","Business Manager - Place","R4308"
"Wolverhampton City Council","http://opendatacommunities.org/id/metropolitan-district-council/wolverhampton","700341","Acs Business Supplies Limited","SINV00441421","17.99","Stationery","130214229","30/05/2018","Community Financial Support","Macmillan Welfare Rights Service","R4308"
"Wolverhampton City Council","http://opendatacommunities.org/id/metropolitan-district-council/wolverhampton","700341","Acs Business Supplies Limited","SINV00416225","45.18","Stationery","130208624","30/05/2018","Looked After Children","Panel Expenses Fostering & Adoption","R4308"
"Wolverhampton City Council","http://opendatacommunities.org/id/metropolitan-district-council/wolverhampton","700341","Acs Business Supplies Limited","SINV00416225","16.77","Stationery","130208624","30/05/2018","Looked After Children","Looked After Team 1","R4308"
"Wolverhampton City Council","http://opendatacommunities.org/id/metropolitan-district-council/wolverhampton","700341","Acs Business Supplies Limited","SINV00443668","47.84","Stationery","130215342","25/05/2018","Special Educational Needs","SEN Special Education Admin","R4308"
"Wolverhampton City Council","http://opendatacommunities.org/id/metropolitan-district-council/wolverhampton","700341","Acs Business Supplies Limited","SINV00438927","9.56","Stationery","130212721","02/05/2018","Skills","IMPACT","R4308"
"Wolverhampton City Council","http://opendatacommunities.org/id/metropolitan-district-council/wolverhampton","700341","Acs Business Supplies Limited","SINV00438927","18.10","Stationery","130212721","02/05/2018","Skills","IMPACT","R4308"
"Wolverhampton City Council","http://opendatacommunities.org/id/metropolitan-district-council/wolverhampton","700539","Activities 4 U","03337","60.00","Services - Supplies and Services to service users","130214233","23/05/2018","Older People Provider Services","Bradley Lodge Resource Centre","R4408"
"Wolverhampton City Council","http://opendatacommunities.org/id/metropolitan-district-council/wolverhampton","700715","Adoption Matters Northwest","180919","28,667.00","TPP - Payments to voluntary groups","130214382","02/05/2018","Looked After Children","Adoption and Residence Team & Allowances","R5200"
"Wolverhampton City Council","http://opendatacommunities.org/id/metropolitan-district-council/wolverhampton","700715","Adoption Matters Northwest","180920","14,333.00","TPP - Payments to voluntary groups","130214383","02/05/2018","Looked After Children","Adoption and Residence Team & Allowances","R5200"
"Wolverhampton City Council","http://opendatacommunities.org/id/metropolitan-district-council/wolverhampton","700770","Adt Fire And Security PLC","38262204-02","-43.83","Fixtures and Fittings - R&M","130214080","16/05/2018","Bereavement Services","Cemeteries","R2502"
"Wolverhampton City Council","http://opendatacommunities.org/id/metropolitan-district-council/wolverhampton","700770","Adt Fire And Security PLC","38017774-02","89.00","Fixtures and Fittings - R&M","130214564","16/05/2018","Maintenance Programme","Centralised R&M","R2502"
"Wolverhampton City Council","http://opendatacommunities.org/id/metropolitan-district-council/wolverhampton","700770","Adt Fire And Security PLC","38481512-02","115.00","Fixtures and Fittings - R&M","130215917","30/05/2018","Bereavement Services","Cemeteries","R2502"
"Wolverhampton City Council","http://opendatacommunities.org/id/metropolitan-district-council/wolverhampton","700770","Adt Fire And Security PLC","38262206-02","133.30","Fixtures and Fittings - R&M","130214081","16/05/2018","Bereavement Services","Cemeteries","R2502"
"Wolverhampton City Council","http://opendatacommunities.org/id/metropolitan-district-council/wolverhampton","700770","Adt Fire And Security PLC","38262345-02","-155.32","Fixtures and Fittings - R&M","130214082","16/05/2018","Bereavement Services","Cemeteries","R2502"
"Wolverhampton City Council","http://opendatacommunities.org/id/metropolitan-district-council/wolverhampton","700770","Adt Fire And Security PLC","38262318-02","-117.60","Fixtures and Fittings - R&M","130214234","16/05/2018","Maintenance Programme","Centralised R&M","R2502"
"Wolverhampton City Council","http://opendatacommunities.org/id/metropolitan-district-council/wolverhampton","700770","Adt Fire And Security PLC","38017567-02","56.00","Fixtures and Fittings - R&M","130214563","16/05/2018","Maintenance Programme","Centralised R&M","R2502"
"Wolverhampton City Council","http://opendatacommunities.org/id/metropolitan-district-council/wolverhampton","700770","Adt Fire And Security PLC","38262338-02","-181.44","Fixtures and Fittings - R&M","130214565","16/05/2018","Maintenance Programme","Centralised R&M","R2502"
"Wolverhampton City Council","http://opendatacommunities.org/id/metropolitan-district-council/wolverhampton","700770","Adt Fire And Security PLC","38262369-02","-27.86","Fixtures and Fittings - R&M","130214694","16/05/2018","Facilities Management","Caretakers Community Centre","R2502"
"Wolverhampton City Council","http://opendatacommunities.org/id/metropolitan-district-council/wolverhampton","700770","Adt Fire And Security PLC","38262370-02","-189.72","Fixtures and Fittings - R&M","130214695","18/05/2018","Facilities Management","Caretakers Community Centre","R2502"
"Wolverhampton City Council","http://opendatacommunities.org/id/metropolitan-district-council/wolverhampton","700979","Af Blakemore/Blakemore Foodservice","5761985","38.69","Provisions (Resale)","130213047","02/05/2018","Adult Education","Caf�","R4102"
"Wolverhampton City Council","http://opendatacommunities.org/id/metropolitan-district-council/wolverhampton","700979","Af Blakemore/Blakemore Foodservice","5848336","435.83","Provisions (Resale)","130213114","02/05/2018","Visitor Economy","Bantock - Tea Rooms","R4102"
"Wolverhampton City Council","http://opendatacommunities.org/id/metropolitan-district-council/wolverhampton","700979","Af Blakemore/Blakemore Foodservice","5801841","312.55","Provisions (Resale)","130213075","02/05/2018","Visitor Economy","Bantock - Tea Rooms","R4102"
"Wolverhampton City Council","http://opendatacommunities.org/id/metropolitan-district-council/wolverhampton","700979","Af Blakemore/Blakemore Foodservice","5828738","303.68","Provisions (Not for resale)","130213288","04/05/2018","Older People Provider Services","Bradley Lodge Resource Centre","R4101"
"Wolverhampton City Council","http://opendatacommunities.org/id/metropolitan-district-council/wolverhampton","700979","Af Blakemore/Blakemore Foodservice","5778502","182.02","Provisions (Resale)","130213057","04/05/2018","Adult Education","Caf�","R4102"
"Wolverhampton City Council","http://opendatacommunities.org/id/metropolitan-district-council/wolverhampton","700979","Af Blakemore/Blakemore Foodservice","5796190","20.54","Provisions (Resale)","130213071","04/05/2018","Adult Education","Caf�","R4102"
"Wolverhampton City Council","http://opendatacommunities.org/id/metropolitan-district-council/wolverhampton","700979","Af Blakemore/Blakemore Foodservice","5835570","230.94","Provisions (Resale)","130213104","04/05/2018","Adult Education","Caf�","R4102"
"Wolverhampton City Council","http://opendatacommunities.org/id/metropolitan-district-council/wolverhampton","700979","Af Blakemore/Blakemore Foodservice","5882628","-13.62","Provisions (Resale)","130217026","30/05/2018","Adult Education","Caf�","R4102"
"Wolverhampton City Council","http://opendatacommunities.org/id/metropolitan-district-council/wolverhampton","700979","Af Blakemore/Blakemore Foodservice","5879434","56.97","Provisions (Resale)","130216802","30/05/2018","Adult Education","Caf�","R4102"
"Wolverhampton City Council","http://opendatacommunities.org/id/metropolitan-district-council/wolverhampton","700979","Af Blakemore/Blakemore Foodservice","WCA000052","2,905.98","Provisions (Not for resale)","130214083","16/05/2018","Leisure Services","WV Active Catering","R4101"
"Wolverhampton City Council","http://opendatacommunities.org/id/metropolitan-district-council/wolverhampton","700979","Af Blakemore/Blakemore Foodservice","WCC000376","149.05","Provisions (Not for resale)","130214085","16/05/2018","Leisure Services","WV Active Catering","R4101"
"Wolverhampton City Council","http://opendatacommunities.org/id/metropolitan-district-council/wolverhampton","700979","Af Blakemore/Blakemore Foodservice","5839177","-17.65","Provisions (Resale)","130213289","16/05/2018","Adult Education","Caf�","R4102"
"Wolverhampton City Council","http://opendatacommunities.org/id/metropolitan-district-council/wolverhampton","700979","Af Blakemore/Blakemore Foodservice","WCC000369","2,130.27","Provisions (Not for resale)","130212726","09/05/2018","Leisure Services","Bert Williams Leisure Centre Caf�","R4101"
"Wolverhampton City Council","http://opendatacommunities.org/id/metropolitan-district-council/wolverhampton","700979","Af Blakemore/Blakemore Foodservice","5865171","220.29","Provisions (Resale)","130216796","25/05/2018","Visitor Economy","Bantock - Tea Rooms","R4102"
"Wolverhampton City Council","http://opendatacommunities.org/id/metropolitan-district-council/wolverhampton","700979","Af Blakemore/Blakemore Foodservice","WCC000373","51,332.60","Provisions (Resale)","130216814","25/05/2018","Catering","Education Catering - General Overheads","R4102"
"Wolverhampton City Council","http://opendatacommunities.org/id/metropolitan-district-council/wolverhampton","700979","Af Blakemore/Blakemore Foodservice","5855366","484.29","Provisions (Resale)","130216658","25/05/2018","Visitor Economy","Art Gallery Tea Room","R4102"
"Wolverhampton City Council","http://opendatacommunities.org/id/metropolitan-district-council/wolverhampton","700979","Af Blakemore/Blakemore Foodservice","5877492","346.78","Provisions (Resale)","130216800","30/05/2018","Visitor Economy","Bantock - Tea Rooms","R4102"
"Wolverhampton City Council","http://opendatacommunities.org/id/metropolitan-district-council/wolverhampton","700979","Af Blakemore/Blakemore Foodservice","5882715","-9.48","Provisions (Resale)","130217027","30/05/2018","Visitor Economy","Bantock - Tea Rooms","R4102"
"Wolverhampton City Council","http://opendatacommunities.org/id/metropolitan-district-council/wolverhampton","700979","Af Blakemore/Blakemore Foodservice","WCC000371","913.13","Provisions (Resale)","130214236","16/05/2018","Catering","Civic Centre Catering","R4102"
"Wolverhampton City Council","http://opendatacommunities.org/id/metropolitan-district-council/wolverhampton","700979","Af Blakemore/Blakemore Foodservice","WCC000378","391.31","Provisions (Not for resale)","130214237","16/05/2018","Leisure Services","Bert Williams Leisure Centre Caf�","R4101"
"Wolverhampton City Council","http://opendatacommunities.org/id/metropolitan-district-council/wolverhampton","700979","Af Blakemore/Blakemore Foodservice","5860931","387.58","Provisions (Resale)","130216792","25/05/2018","Visitor Economy","Bantock - Tea Rooms","R4102"
"Wolverhampton City Council","http://opendatacommunities.org/id/metropolitan-district-council/wolverhampton","700979","Af Blakemore/Blakemore Foodservice","WCC000374","78,596.58","Provisions (Resale)","130216815","25/05/2018","Catering","Education Catering - General Overheads","R4102"
"Wolverhampton City Council","http://opendatacommunities.org/id/metropolitan-district-council/wolverhampton","700979","Af Blakemore/Blakemore Foodservice","5863016","245.28","Provisions (Resale)","130216659","25/05/2018","Adult Education","Caf�","R4102"
"Wolverhampton City Council","http://opendatacommunities.org/id/metropolitan-district-council/wolverhampton","700979","Af Blakemore/Blakemore Foodservice","5810568","175.03","Provisions (Resale)","130213082","04/05/2018","Adult Education","Caf�","R4102"
"Wolverhampton City Council","http://opendatacommunities.org/id/metropolitan-district-council/wolverhampton","700979","Af Blakemore/Blakemore Foodservice","5814955","52.09","Provisions (Resale)","130213089","04/05/2018","Adult Education","Caf�","R4102"
"Wolverhampton City Council","http://opendatacommunities.org/id/metropolitan-district-council/wolverhampton","700979","Af Blakemore/Blakemore Foodservice","5835578","7.69","Provisions (Resale)","130213105","04/05/2018","Adult Education","Caf�","R4102"
"Wolverhampton City Council","http://opendatacommunities.org/id/metropolitan-district-council/wolverhampton","700979","Af Blakemore/Blakemore Foodservice","5827180","180.67","Provisions (Resale)","130213100","04/05/2018","Adult Education","Caf�","R4102"
"Wolverhampton City Council","http://opendatacommunities.org/id/metropolitan-district-council/wolverhampton","700979","Af Blakemore/Blakemore Foodservice","5844956","8.14","Provisions (Not for resale)","130213112","02/05/2018","Older People Provider Services","Bradley Lodge Resource Centre","R4101"
"Wolverhampton City Council","http://opendatacommunities.org/id/metropolitan-district-council/wolverhampton","700979","Af Blakemore/Blakemore Foodservice","5808576","375.07","Provisions (Resale)","130213080","02/05/2018","Visitor Economy","Bantock - Tea Rooms","R4102"
"Wolverhampton City Council","http://opendatacommunities.org/id/metropolitan-district-council/wolverhampton","700979","Af Blakemore/Blakemore Foodservice","5793587","296.95","Provisions (Resale)","130213067","02/05/2018","Visitor Economy","Bantock - Tea Rooms","R4102"
"Wolverhampton City Council","http://opendatacommunities.org/id/metropolitan-district-council/wolverhampton","700979","Af Blakemore/Blakemore Foodservice","WCC000372","775.50","Provisions (Resale)","130216813","23/05/2018","Catering","Meals on Wheels","R4102"
"Wolverhampton City Council","http://opendatacommunities.org/id/metropolitan-district-council/wolverhampton","700979","Af Blakemore/Blakemore Foodservice","WCC000348","1,859.41","Provisions (Not for resale)","130215179","09/05/2018","Leisure Services","Bert Williams Leisure Centre Caf�","R4101"
"Wolverhampton City Council","http://opendatacommunities.org/id/metropolitan-district-council/wolverhampton","700979","Af Blakemore/Blakemore Foodservice","WCC000370","4,203.56","Provisions (Resale)","130214235","16/05/2018","Catering","Civic Centre Catering","R4102"
"Wolverhampton City Council","http://opendatacommunities.org/id/metropolitan-district-council/wolverhampton","700979","Af Blakemore/Blakemore Foodservice","5769826","171.77","Provisions (Resale)","130213051","16/05/2018","Adult Education","Caf�","R4102"
"Wolverhampton City Council","http://opendatacommunities.org/id/metropolitan-district-council/wolverhampton","700979","Af Blakemore/Blakemore Foodservice","5870961","304.62","Provisions (Resale)","130216661","25/05/2018","Adult Education","Caf�","R4102"
"Wolverhampton City Council","http://opendatacommunities.org/id/metropolitan-district-council/wolverhampton","700979","Af Blakemore/Blakemore Foodservice","WCC000377","1,825.29","Provisions (Not for resale)","130216816","25/05/2018","Leisure Services","Bert Williams Leisure Centre Caf�","R4101"
"Wolverhampton City Council","http://opendatacommunities.org/id/metropolitan-district-council/wolverhampton","700979","Af Blakemore/Blakemore Foodservice","5870975","22.39","Provisions (Resale)","130216797","25/05/2018","Adult Education","Caf�","R4102"
"Wolverhampton City Council","http://opendatacommunities.org/id/metropolitan-district-council/wolverhampton","700979","Af Blakemore/Blakemore Foodservice","5882558","-4.28","Provisions (Resale)","130217024","30/05/2018","Catering","Education Catering - General Overheads","R4102"
"Wolverhampton City Council","http://opendatacommunities.org/id/metropolitan-district-council/wolverhampton","700979","Af Blakemore/Blakemore Foodservice","5882204","13.62","Provisions (Resale)","130216803","30/05/2018","Adult Education","Caf�","R4102"
"Wolverhampton City Council","http://opendatacommunities.org/id/metropolitan-district-council/wolverhampton","700979","Af Blakemore/Blakemore Foodservice","5824706","213.04","Provisions (Resale)","130213098","04/05/2018","Visitor Economy","Bantock - Tea Rooms","R4102"
"Wolverhampton City Council","http://opendatacommunities.org/id/metropolitan-district-council/wolverhampton","700979","Af Blakemore/Blakemore Foodservice","5810579","32.37","Provisions (Resale)","130213083","04/05/2018","Adult Education","Caf�","R4102"
"Wolverhampton City Council","http://opendatacommunities.org/id/metropolitan-district-council/wolverhampton","700979","Af Blakemore/Blakemore Foodservice","5818544","15.11","Provisions (Resale)","130213093","04/05/2018","Adult Education","Caf�","R4102"
"Wolverhampton City Council","http://opendatacommunities.org/id/metropolitan-district-council/wolverhampton","700979","Af Blakemore/Blakemore Foodservice","5851819","62.30","Provisions (Not for resale)","130213116","04/05/2018","Older People Provider Services","Bradley Lodge Resource Centre","R4101"
"Wolverhampton City Council","http://opendatacommunities.org/id/metropolitan-district-council/wolverhampton","700979","Af Blakemore/Blakemore Foodservice","5851144","206.01","Provisions (Resale)","130213115","02/05/2018","Visitor Economy","Bantock - Tea Rooms","R4102"
"Wolverhampton City Council","http://opendatacommunities.org/id/metropolitan-district-council/wolverhampton","700979","Af Blakemore/Blakemore Foodservice","5844935","126.58","Provisions (Not for resale)","130213111","02/05/2018","Older People Provider Services","Bradley Lodge Resource Centre","R4101"
"Wolverhampton City Council","http://opendatacommunities.org/id/metropolitan-district-council/wolverhampton","700979","Af Blakemore/Blakemore Foodservice","5846179","30.01","Provisions (Not for resale)","130213113","02/05/2018","Older People Provider Services","Bradley Lodge Resource Centre","R4101"
"Wolverhampton City Council","http://opendatacommunities.org/id/metropolitan-district-council/wolverhampton","700979","Af Blakemore/Blakemore Foodservice","5849378","474.69","Provisions (Resale)","130212900","02/05/2018","Visitor Economy","Art Gallery Tea Room","R4102"
"Wolverhampton City Council","http://opendatacommunities.org/id/metropolitan-district-council/wolverhampton","700979","Af Blakemore/Blakemore Foodservice","5818535","217.29","Provisions (Resale)","130213092","04/05/2018","Adult Education","Caf�","R4102"
"Wolverhampton City Council","http://opendatacommunities.org/id/metropolitan-district-council/wolverhampton","700979","Af Blakemore/Blakemore Foodservice","5778511","32.10","Provisions (Resale)","130213058","04/05/2018","Adult Education","Caf�","R4102"
"Wolverhampton City Council","http://opendatacommunities.org/id/metropolitan-district-council/wolverhampton","700979","Af Blakemore/Blakemore Foodservice","5796181","129.96","Provisions (Resale)","130213070","04/05/2018","Adult Education","Caf�","R4102"
"Wolverhampton City Council","http://opendatacommunities.org/id/metropolitan-district-council/wolverhampton","700979","Af Blakemore/Blakemore Foodservice","5789135","5.42","Provisions (Not for resale)","130213490","04/05/2018","Older People Provider Services","Bradley Lodge Resource Centre","R4101"
"Wolverhampton City Council","http://opendatacommunities.org/id/metropolitan-district-council/wolverhampton","700979","Af Blakemore/Blakemore Foodservice","5882590","-5.17","Provisions (Resale)","130217025","30/05/2018","Visitor Economy","Bantock - Tea Rooms","R4102"
"Wolverhampton City Council","http://opendatacommunities.org/id/metropolitan-district-council/wolverhampton","700979","Af Blakemore/Blakemore Foodservice","5882543","-4.42","Provisions (Resale)","130217023","30/05/2018","Adult Education","Caf�","R4102"
"Wolverhampton City Council","http://opendatacommunities.org/id/metropolitan-district-council/wolverhampton","700979","Af Blakemore/Blakemore Foodservice","WCC000375","1,064.16","Provisions (Not for resale)","130214084","16/05/2018","Leisure Services","WV Active Catering - Central","R4101"
"Wolverhampton City Council","http://opendatacommunities.org/id/metropolitan-district-council/wolverhampton","700979","Af Blakemore/Blakemore Foodservice","5820493","-52.09","Provisions (Resale)","130213495","16/05/2018","Adult Education","Caf�","R4102"
"Wolverhampton City Council","http://opendatacommunities.org/id/metropolitan-district-council/wolverhampton","700979","Af Blakemore/Blakemore Foodservice","5871058","44.56","Provisions (Not for resale)","130215493","25/05/2018","Older People Provider Services","Blakenhall Resource Centre","R4101"
"Wolverhampton City Council","http://opendatacommunities.org/id/metropolitan-district-council/wolverhampton","700979","Af Blakemore/Blakemore Foodservice","5863034","10.67","Provisions (Resale)","130216793","25/05/2018","Adult Education","Caf�","R4102"
"Wolverhampton City Council","http://opendatacommunities.org/id/metropolitan-district-council/wolverhampton","700979","Af Blakemore/Blakemore Foodservice","5870771","302.89","Provisions (Resale)","130216660","25/05/2018","Visitor Economy","Art Gallery Tea Room","R4102"
"Wolverhampton City Council","http://opendatacommunities.org/id/metropolitan-district-council/wolverhampton","701100","Aggregate Industries UK Limited","CBA26492838","150,000.00","Construction and Conversion","130215671","30/05/2018","-","Transport Structual Maintenance","C1100"
"Wolverhampton City Council","http://opendatacommunities.org/id/metropolitan-district-council/wolverhampton","701155","Aidapt Bathrooms Limited","342403","940.00","Equipment - Purchase","130215495","23/05/2018","Independent Living Service","Independent Living Service","R4000"
"Wolverhampton City Council","http://opendatacommunities.org/id/metropolitan-district-council/wolverhampton","701155","Aidapt Bathrooms Limited","341830","99.00","Equipment - Purchase","130215345","18/05/2018","Independent Living Service","Independent Living Service","R4000"
"Wolverhampton City Council","http://opendatacommunities.org/id/metropolitan-district-council/wolverhampton","701210","Air Methods Limited","PSC000178","-98.94","Equipment - R & M","190461360","23/05/2018","Fleet Services","Fleet Management","R4003"
"Wolverhampton City Council","http://opendatacommunities.org/id/metropolitan-district-council/wolverhampton","701210","Air Methods Limited","SI004885","161.16","Equipment - R & M","190461361","23/05/2018","Fleet Services","Fleet Management","R4003"
"Wolverhampton City Council","http://opendatacommunities.org/id/metropolitan-district-council/wolverhampton","701210","Air Methods Limited","SI004885","260.10","Equipment - R & M","190461361","23/05/2018","Fleet Services","Fleet Management","R4003"
"Wolverhampton City Council","http://opendatacommunities.org/id/metropolitan-district-council/wolverhampton","701210","Air Methods Limited","SI004885","150.96","Equipment - R & M","190461361","23/05/2018","Fleet Services","Fleet Management","R4003"
"Wolverhampton City Council","http://opendatacommunities.org/id/metropolitan-district-council/wolverhampton","701210","Air Methods Limited","SI004885","98.94","Equipment - R & M","190461361","23/05/2018","Fleet Services","Fleet Management","R4003"
"Wolverhampton City Council","http://opendatacommunities.org/id/metropolitan-district-council/wolverhampton","701210","Air Methods Limited","SI004368","149.00","R&M - Departmental planned (external)","130216086","16/05/2018","Maintenance Programme","Civic Centre Repairs & Maintenance","R2001"
"Wolverhampton City Council","http://opendatacommunities.org/id/metropolitan-district-council/wolverhampton","701265","Airport Express West Midlands Limited","1693A","1,600.00","Client Transport","130214968","09/05/2018","Special Educational Needs","Special - Transport","R3042"
"Wolverhampton City Council","http://opendatacommunities.org/id/metropolitan-district-council/wolverhampton","701265","Airport Express West Midlands Limited","1709","800.00","Client Transport","130214697","09/05/2018","Special Educational Needs","Special - Transport","R3042"
"Wolverhampton City Council","http://opendatacommunities.org/id/metropolitan-district-council/wolverhampton","701265","Airport Express West Midlands Limited","1710","880.00","Client Transport","130214698","09/05/2018","Special Educational Needs","Special - Transport","R3042"
"Wolverhampton City Council","http://opendatacommunities.org/id/metropolitan-district-council/wolverhampton","701276","Airport-Link","BDW109","1,108.36","Client Transport","130215346","09/05/2018","Schools","Pupil Referral Units ISB","R3042"
"Wolverhampton City Council","http://opendatacommunities.org/id/metropolitan-district-council/wolverhampton","701388","Albrighton Medical Practice","FOS4076","24.36","Services - Professional Fees","190455508","11/05/2018","Looked After Children","Fostering Team & Allowances","R4400"
"Wolverhampton City Council","http://opendatacommunities.org/id/metropolitan-district-council/wolverhampton","701388","Albrighton Medical Practice","FOS4075","24.36","Services - Professional Fees","190455507","11/05/2018","Looked After Children","Fostering Team & Allowances","R4400"
"Wolverhampton City Council","http://opendatacommunities.org/id/metropolitan-district-council/wolverhampton","701436","Allsigns International Limited","460074","59.06","Equipment - Purchase","130217033","30/05/2018","Facilities Management","Bilston Town Hall","R4000"
"Wolverhampton City Council","http://opendatacommunities.org/id/metropolitan-district-council/wolverhampton","701439","Allstar Business Solutions Limited","E2009675319","26.50","Petrol","190461351","23/05/2018","Fleet Services","Fleet Management","R3000"
"Wolverhampton City Council","http://opendatacommunities.org/id/metropolitan-district-council/wolverhampton","701439","Allstar Business Solutions Limited","E2009670372","1,018.37","Petrol","190456512","11/05/2018","Fleet Services","Fleet Management","R3000"
"Wolverhampton City Council","http://opendatacommunities.org/id/metropolitan-district-council/wolverhampton","701439","Allstar Business Solutions Limited","E2009728402","1,405.14","Petrol","190461352","23/05/2018","Fleet Services","Fleet Management","R3000"
"Wolverhampton City Council","http://opendatacommunities.org/id/metropolitan-district-council/wolverhampton","701439","Allstar Business Solutions Limited","E2009728402","62.91","Petrol","190461352","23/05/2018","Fleet Services","Fleet Management","R3000"
"Wolverhampton City Council","http://opendatacommunities.org/id/metropolitan-district-council/wolverhampton","701439","Allstar Business Solutions Limited","E2009729510","106.42","Petrol","190461353","23/05/2018","Fleet Services","Fleet Management","R3000"
"Wolverhampton City Council","http://opendatacommunities.org/id/metropolitan-district-council/wolverhampton","701446","Alphabiolabs","20829","75.00","Services - Professional Fees","130215347","11/05/2018","Legal Services","Centralised External Legal Costs","R4400"
"Wolverhampton City Council","http://opendatacommunities.org/id/metropolitan-district-council/wolverhampton","701448","Alphatec 2000 Limited","9235","45.61","Equipment - R & M","130216162","23/05/2018","ICTS","Document Centre - General","R4003"
"Wolverhampton City Council","http://opendatacommunities.org/id/metropolitan-district-council/wolverhampton","701448","Alphatec 2000 Limited","9202","453.54","Equipment - R & M","130213932","02/05/2018","ICTS","Document Centre - General","R4003"
"Wolverhampton City Council","http://opendatacommunities.org/id/metropolitan-district-council/wolverhampton","701509","Angel Springs Limited (Waterlogic)","4148988","25.92","Provisions (Not for resale)","130214705","18/05/2018","Parking Services","Car Parks Operational Staff","R4101"
"Wolverhampton City Council","http://opendatacommunities.org/id/metropolitan-district-council/wolverhampton","701509","Angel Springs Limited (Waterlogic)","4265915","15.00","Provisions (Not for resale)","130214583","02/05/2018","Early Intervention","EIP Locality 7 � Low Hill","R4101"
"Wolverhampton City Council","http://opendatacommunities.org/id/metropolitan-district-council/wolverhampton","701509","Angel Springs Limited (Waterlogic)","4093021","13.75","Provisions (Not for resale)","130214567","02/05/2018","Skills","Connexions Contract","R4101"
"Wolverhampton City Council","http://opendatacommunities.org/id/metropolitan-district-council/wolverhampton","701509","Angel Springs Limited (Waterlogic)","3825003","0.48","Catering","130213290","02/05/2018","Visitor Economy","Archives","R4100"
"Wolverhampton City Council","http://opendatacommunities.org/id/metropolitan-district-council/wolverhampton","701509","Angel Springs Limited (Waterlogic)","4211452","30.32","Provisions (Not for resale)","130213295","02/05/2018","Visitor Economy","Archives","R4101"
"Wolverhampton City Council","http://opendatacommunities.org/id/metropolitan-district-council/wolverhampton","701509","Angel Springs Limited (Waterlogic)","4211478","44.16","Provisions (Not for resale)","130214580","02/05/2018","Highways Maintenance","Patching","R4101"
"Wolverhampton City Council","http://opendatacommunities.org/id/metropolitan-district-council/wolverhampton","701509","Angel Springs Limited (Waterlogic)","4211449","6.48","Provisions (Not for resale)","130214962","02/05/2018","Headstart","Headstart Phase 3","R4101"
"Wolverhampton City Council","http://opendatacommunities.org/id/metropolitan-district-council/wolverhampton","701509","Angel Springs Limited (Waterlogic)","4149002","12.96","Provisions (Not for resale)","130214708","04/05/2018","Headstart","Headstart Phase 3","R4101"
"Wolverhampton City Council","http://opendatacommunities.org/id/metropolitan-district-council/wolverhampton","701509","Angel Springs Limited (Waterlogic)","4265921","10.30","Provisions (Not for resale)","130214714","04/05/2018","Headstart","Headstart Phase 3","R4101"
"Wolverhampton City Council","http://opendatacommunities.org/id/metropolitan-district-council/wolverhampton","701509","Angel Springs Limited (Waterlogic)","4265919","15.64","Provisions (Not for resale)","130214713","04/05/2018","Facilities Management","Victoria Square, Block 11","R4101"
"Wolverhampton City Council","http://opendatacommunities.org/id/metropolitan-district-council/wolverhampton","701509","Angel Springs Limited (Waterlogic)","4148990","15.64","Provisions (Not for resale)","130214706","04/05/2018","Early Intervention","EIP Locality 2 � Bilston/Rocket Pool","R4101"
"Wolverhampton City Council","http://opendatacommunities.org/id/metropolitan-district-council/wolverhampton","701509","Angel Springs Limited (Waterlogic)","4318815","53.91","Provisions (Not for resale)","130217036","25/05/2018","School Planning & Resources","Education Data Services","R4101"
"Wolverhampton City Council","http://opendatacommunities.org/id/metropolitan-district-council/wolverhampton","701509","Angel Springs Limited (Waterlogic)","4318563","234.00","Equipment - Purchase","130217035","25/05/2018","Early Intervention","EIP Locality 5 � Whitmore Reans","R4000"
"Wolverhampton City Council","http://opendatacommunities.org/id/metropolitan-district-council/wolverhampton","701509","Angel Springs Limited (Waterlogic)","4149029","82.50","Provisions (Not for resale)","130214573","16/05/2018","Maintenance Programme","Civic Centre Repairs & Maintenance","R4101"
"Wolverhampton City Council","http://opendatacommunities.org/id/metropolitan-district-council/wolverhampton","701509","Angel Springs Limited (Waterlogic)","4265948","82.50","Provisions (Not for resale)","130214586","11/05/2018","Maintenance Programme","Civic Centre Repairs & Maintenance","R4101"
"Wolverhampton City Council","http://opendatacommunities.org/id/metropolitan-district-council/wolverhampton","701509","Angel Springs Limited (Waterlogic)","4093013","10.30","Provisions (Not for resale)","130214703","25/05/2018","Parking Services","Shopmobility","R4101"
"Wolverhampton City Council","http://opendatacommunities.org/id/metropolitan-district-council/wolverhampton","701509","Angel Springs Limited (Waterlogic)","3032109","206.25","Provisions (Not for resale)","130214699","25/05/2018","Facilities Management","Civic Centre","R4101"
"Wolverhampton City Council","http://opendatacommunities.org/id/metropolitan-district-council/wolverhampton","701509","Angel Springs Limited (Waterlogic)","4149031","59.48","Provisions (Not for resale)","130214574","02/05/2018","Highways Maintenance","Patching","R4101"
"Wolverhampton City Council","http://opendatacommunities.org/id/metropolitan-district-council/wolverhampton","701509","Angel Springs Limited (Waterlogic)","4148999","13.75","Provisions (Not for resale)","130214572","02/05/2018","Skills","Connexions Contract","R4101"
"Wolverhampton City Council","http://opendatacommunities.org/id/metropolitan-district-council/wolverhampton","701509","Angel Springs Limited (Waterlogic)","3986818","0.48","Catering","130213291","02/05/2018","Visitor Economy","Archives","R4100"
"Wolverhampton City Council","http://opendatacommunities.org/id/metropolitan-district-council/wolverhampton","701509","Angel Springs Limited (Waterlogic)","4040991","6.48","Catering","130213292","02/05/2018","Visitor Economy","Archives","R4100"
"Wolverhampton City Council","http://opendatacommunities.org/id/metropolitan-district-council/wolverhampton","701509","Angel Springs Limited (Waterlogic)","4265920","9.72","Provisions (Not for resale)","130214584","02/05/2018","School Planning & Resources","Education Data Services","R4101"
"Wolverhampton City Council","http://opendatacommunities.org/id/metropolitan-district-council/wolverhampton","701509","Angel Springs Limited (Waterlogic)","4093048","25.92","Provisions (Not for resale)","130214569","02/05/2018","Highways Maintenance","Patching","R4101"
"Wolverhampton City Council","http://opendatacommunities.org/id/metropolitan-district-council/wolverhampton","701509","Angel Springs Limited (Waterlogic)","4211440","36.80","Provisions (Not for resale)","130214576","18/05/2018","Parking Services","Parking Enforcement","R4101"
"Wolverhampton City Council","http://opendatacommunities.org/id/metropolitan-district-council/wolverhampton","701509","Angel Springs Limited (Waterlogic)","4148989","38.88","Provisions (Not for resale)","130214570","18/05/2018","Parking Services","Parking Enforcement","R4101"
"Wolverhampton City Council","http://opendatacommunities.org/id/metropolitan-district-council/wolverhampton","701509","Angel Springs Limited (Waterlogic)","4093012","9.72","Provisions (Not for resale)","130214702","18/05/2018","Parking Services","Parking Enforcement","R4101"
"Wolverhampton City Council","http://opendatacommunities.org/id/metropolitan-district-council/wolverhampton","701509","Angel Springs Limited (Waterlogic)","4265925","12.96","Provisions (Not for resale)","130214715","04/05/2018","Headstart","Headstart Phase 3","R4101"
"Wolverhampton City Council","http://opendatacommunities.org/id/metropolitan-district-council/wolverhampton","701509","Angel Springs Limited (Waterlogic)","4093014","15.64","Provisions (Not for resale)","130214956","04/05/2018","Early Intervention","EIP Locality 2 � Bilston/Rocket Pool","R4101"
"Wolverhampton City Council","http://opendatacommunities.org/id/metropolitan-district-council/wolverhampton","701509","Angel Springs Limited (Waterlogic)","4148996","15.64","Provisions (Not for resale)","130214707","04/05/2018","Facilities Management","Victoria Square, Block 11","R4101"
"Wolverhampton City Council","http://opendatacommunities.org/id/metropolitan-district-council/wolverhampton","701509","Angel Springs Limited (Waterlogic)","4318813","19.44","Provisions (Not for resale)","130216163","25/05/2018","Transportation","Passenger Transport - General","R4101"
"Wolverhampton City Council","http://opendatacommunities.org/id/metropolitan-district-council/wolverhampton","701509","Angel Springs Limited (Waterlogic)","4211479","6.48","Provisions (Not for resale)","130215348","09/05/2018","Licensing","Licensing - Private Hire Vehicles","R4101"
"Wolverhampton City Council","http://opendatacommunities.org/id/metropolitan-district-council/wolverhampton","701509","Angel Springs Limited (Waterlogic)","4148731","234.00","Equipment - Purchase","130217034","25/05/2018","Early Intervention","EIP Locality 5 � Whitmore Reans","R4000"
"Wolverhampton City Council","http://opendatacommunities.org/id/metropolitan-district-council/wolverhampton","701509","Angel Springs Limited (Waterlogic)","4093024","24.72","Provisions (Not for resale)","130214568","02/05/2018","Headstart","Headstart Phase 3","R4101"
"Wolverhampton City Council","http://opendatacommunities.org/id/metropolitan-district-council/wolverhampton","701509","Angel Springs Limited (Waterlogic)","4265922","13.75","Provisions (Not for resale)","130214585","02/05/2018","Skills","Connexions Contract","R4101"
"Wolverhampton City Council","http://opendatacommunities.org/id/metropolitan-district-council/wolverhampton","701509","Angel Springs Limited (Waterlogic)","4265198","16.78","Provisions (Not for resale)","130213933","02/05/2018","Environmental Maintenance","Ground Maintenance East","R4101"
"Wolverhampton City Council","http://opendatacommunities.org/id/metropolitan-district-council/wolverhampton","701509","Angel Springs Limited (Waterlogic)","4093023","21.08","Catering","130213293","02/05/2018","Visitor Economy","Archives","R4100"
"Wolverhampton City Council","http://opendatacommunities.org/id/metropolitan-district-council/wolverhampton","701509","Angel Springs Limited (Waterlogic)","4040992","6.48","Provisions (Not for resale)","130214701","02/05/2018","Headstart","Headstart Phase 3","R4101"
"Wolverhampton City Council","http://opendatacommunities.org/id/metropolitan-district-council/wolverhampton","701509","Angel Springs Limited (Waterlogic)","4211444","10.30","Provisions (Not for resale)","130214577","02/05/2018","Customer Services","City Direct","R4101"
"Wolverhampton City Council","http://opendatacommunities.org/id/metropolitan-district-council/wolverhampton","701509","Angel Springs Limited (Waterlogic)","4265912","16.20","Provisions (Not for resale)","130214581","18/05/2018","Parking Services","Parking Enforcement","R4101"
"Wolverhampton City Council","http://opendatacommunities.org/id/metropolitan-district-council/wolverhampton","701509","Angel Springs Limited (Waterlogic)","4093018","15.64","Provisions (Not for resale)","130214704","04/05/2018","Facilities Management","Victoria Square, Block 11","R4101"
"Wolverhampton City Council","http://opendatacommunities.org/id/metropolitan-district-council/wolverhampton","701509","Angel Springs Limited (Waterlogic)","4211447","15.64","Provisions (Not for resale)","130214710","04/05/2018","Facilities Management","Victoria Square, Block 11","R4101"
"Wolverhampton City Council","http://opendatacommunities.org/id/metropolitan-district-council/wolverhampton","701509","Angel Springs Limited (Waterlogic)","4265913","10.30","Provisions (Not for resale)","130214712","04/05/2018","Parking Services","Shopmobility","R4101"
"Wolverhampton City Council","http://opendatacommunities.org/id/metropolitan-district-council/wolverhampton","701509","Angel Springs Limited (Waterlogic)","4211476","82.50","Provisions (Not for resale)","130214579","16/05/2018","Maintenance Programme","Civic Centre Repairs & Maintenance","R4101"
"Wolverhampton City Council","http://opendatacommunities.org/id/metropolitan-district-council/wolverhampton","701509","Angel Springs Limited (Waterlogic)","4211482","15.64","Provisions (Not for resale)","130210866","25/05/2018","Facilities Management","Culwell Street Depot","R4101"
"Wolverhampton City Council","http://opendatacommunities.org/id/metropolitan-district-council/wolverhampton","701509","Angel Springs Limited (Waterlogic)","4318856","186.72","Provisions (Not for resale)","130216313","25/05/2018","Fleet Services","Fleet Management","R4101"
"Wolverhampton City Council","http://opendatacommunities.org/id/metropolitan-district-council/wolverhampton","701509","Angel Springs Limited (Waterlogic)","4211439","36.22","Provisions (Not for resale)","130214575","18/05/2018","Parking Services","Car Parks Operational Staff","R4101"
"Wolverhampton City Council","http://opendatacommunities.org/id/metropolitan-district-council/wolverhampton","701509","Angel Springs Limited (Waterlogic)","4265911","12.96","Provisions (Not for resale)","130214711","18/05/2018","Parking Services","Car Parks Operational Staff","R4101"
"Wolverhampton City Council","http://opendatacommunities.org/id/metropolitan-district-council/wolverhampton","701509","Angel Springs Limited (Waterlogic)","4148993","22.68","Provisions (Not for resale)","130214571","02/05/2018","Customer Services","City Direct","R4101"
"Wolverhampton City Council","http://opendatacommunities.org/id/metropolitan-district-council/wolverhampton","701509","Angel Springs Limited (Waterlogic)","4265199","6.48","Provisions (Not for resale)","130213934","02/05/2018","Environmental Maintenance","Arbor Scheme","R4101"
"Wolverhampton City Council","http://opendatacommunities.org/id/metropolitan-district-council/wolverhampton","701509","Angel Springs Limited (Waterlogic)","4265200","10.30","Provisions (Not for resale)","130214089","02/05/2018","Environmental Maintenance","Arbor Scheme","R4101"
"Wolverhampton City Council","http://opendatacommunities.org/id/metropolitan-district-council/wolverhampton","701509","Angel Springs Limited (Waterlogic)","4265914","15.64","Provisions (Not for resale)","130214582","02/05/2018","Early Intervention","EIP Locality 2 � Bilston/Rocket Pool","R4101"
"Wolverhampton City Council","http://opendatacommunities.org/id/metropolitan-district-council/wolverhampton","701509","Angel Springs Limited (Waterlogic)","4265951","51.80","Provisions (Not for resale)","130214587","02/05/2018","Highways Maintenance","Patching","R4101"
"Wolverhampton City Council","http://opendatacommunities.org/id/metropolitan-district-council/wolverhampton","701509","Angel Springs Limited (Waterlogic)","4211450","13.75","Provisions (Not for resale)","130214578","02/05/2018","Skills","Connexions Contract","R4101"
"Wolverhampton City Council","http://opendatacommunities.org/id/metropolitan-district-council/wolverhampton","701509","Angel Springs Limited (Waterlogic)","4211441","15.64","Provisions (Not for resale)","130214709","04/05/2018","Early Intervention","EIP Locality 2 � Bilston/Rocket Pool","R4101"
"Wolverhampton City Council","http://opendatacommunities.org/id/metropolitan-district-council/wolverhampton","701509","Angel Springs Limited (Waterlogic)","4093011","10.30","Provisions (Not for resale)","130214566","04/05/2018","Parking Services","Car Parks Operational Staff","R4101"
"Wolverhampton City Council","http://opendatacommunities.org/id/metropolitan-district-council/wolverhampton","701509","Angel Springs Limited (Waterlogic)","3661954","-18.90","Provisions (Not for resale)","130214700","02/05/2018","Facilities Management","Civic Centre","R4101"
"Wolverhampton City Council","http://opendatacommunities.org/id/metropolitan-district-council/wolverhampton","701511","Angelbell Limited T/A Hulleys Frozen","575887","104.03","Provisions (Resale)","130214240","02/05/2018","Visitor Economy","Bantock - Tea Rooms","R4102"
"Wolverhampton City Council","http://opendatacommunities.org/id/metropolitan-district-council/wolverhampton","701511","Angelbell Limited T/A Hulleys Frozen","615084","108.81","Provisions (Resale)","130215673","30/05/2018","Visitor Economy","Bantock - Tea Rooms","R4102"
"Wolverhampton City Council","http://opendatacommunities.org/id/metropolitan-district-council/wolverhampton","701512","Anglia Dna Services Limited","5114","111.00","Services - Professional Fees","130214588","02/05/2018","Legal Services","Centralised External Legal Costs","R4400"
"Wolverhampton City Council","http://opendatacommunities.org/id/metropolitan-district-council/wolverhampton","701512","Anglia Dna Services Limited","4204","148.00","Services - Professional Fees","130216403","23/05/2018","Child Protection","Head of Service - CINCP","R4400"
"Wolverhampton City Council","http://opendatacommunities.org/id/metropolitan-district-council/wolverhampton","701545","Apcoa Parking (UK) Limited","266685","56,423.82","TPP - Traffic Management","130211951","16/05/2018","Parking Services","Parking Enforcement","R5050"
"Wolverhampton City Council","http://opendatacommunities.org/id/metropolitan-district-council/wolverhampton","701545","Apcoa Parking (UK) Limited","267224","51,101.59","TPP - Traffic Management","130215181","25/05/2018","Parking Services","Parking Enforcement","R5050"
"Wolverhampton City Council","http://opendatacommunities.org/id/metropolitan-district-council/wolverhampton","701547","Apetito Limited","9002326116","1,361.39","Provisions (Resale)","130215918","30/05/2018","Catering","Meals on Wheels","R4102"
"Wolverhampton City Council","http://opendatacommunities.org/id/metropolitan-district-council/wolverhampton","701547","Apetito Limited","9002326116","0.03","Provisions (Resale)","130215918","30/05/2018","Catering","Meals on Wheels","R4102"
"Wolverhampton City Council","http://opendatacommunities.org/id/metropolitan-district-council/wolverhampton","701547","Apetito Limited","9002326116","0.05","Provisions (Resale)","130215918","30/05/2018","Catering","Meals on Wheels","R4102"
"Wolverhampton City Council","http://opendatacommunities.org/id/metropolitan-district-council/wolverhampton","701547","Apetito Limited","9002301714","1,098.04","Provisions (Resale)","130213500","09/05/2018","Catering","Meals on Wheels","R4102"
"Wolverhampton City Council","http://opendatacommunities.org/id/metropolitan-district-council/wolverhampton","701547","Apetito Limited","9002305849","1,306.05","Provisions (Resale)","130213935","11/05/2018","Catering","Meals on Wheels","R4102"
"Wolverhampton City Council","http://opendatacommunities.org/id/metropolitan-district-council/wolverhampton","701547","Apetito Limited","9002266275","165.48","Provisions (Resale)","130208774","16/05/2018","Catering","Meals on Wheels","R4102"
"Wolverhampton City Council","http://opendatacommunities.org/id/metropolitan-district-council/wolverhampton","701547","Apetito Limited","9002315279","1,101.61","Provisions (Resale)","130214716","23/05/2018","Catering","Meals on Wheels","R4102"
"Wolverhampton City Council","http://opendatacommunities.org/id/metropolitan-district-council/wolverhampton","701547","Apetito Limited","9002315279","0.08","Provisions (Resale)","130214716","23/05/2018","Catering","Meals on Wheels","R4102"
"Wolverhampton City Council","http://opendatacommunities.org/id/metropolitan-district-council/wolverhampton","701547","Apetito Limited","9002308590","924.71","Provisions (Resale)","130214090","16/05/2018","Catering","Meals on Wheels","R4102"
"Wolverhampton City Council","http://opendatacommunities.org/id/metropolitan-district-council/wolverhampton","701547","Apetito Limited","9002295073","1,147.83","Provisions (Resale)","130212440","11/05/2018","Catering","Meals on Wheels","R4102"
"Wolverhampton City Council","http://opendatacommunities.org/id/metropolitan-district-council/wolverhampton","701547","Apetito Limited","9002319439","1,358.52","Provisions (Resale)","130215349","23/05/2018","Catering","Meals on Wheels","R4102"
"Wolverhampton City Council","http://opendatacommunities.org/id/metropolitan-district-council/wolverhampton","701547","Apetito Limited","9002318031","-32.33","Provisions (Resale)","130215182","09/05/2018","Catering","Meals on Wheels","R4102"
"Wolverhampton City Council","http://opendatacommunities.org/id/metropolitan-district-council/wolverhampton","701547","Apetito Limited","9002298994","1,296.76","Provisions (Resale)","130212904","02/05/2018","Catering","Meals on Wheels","R4102"
"Wolverhampton City Council","http://opendatacommunities.org/id/metropolitan-district-council/wolverhampton","701547","Apetito Limited","9002312584","1,284.88","Provisions (Resale)","130214589","16/05/2018","Catering","Meals on Wheels","R4102"
"Wolverhampton City Council","http://opendatacommunities.org/id/metropolitan-district-council/wolverhampton","701547","Apetito Limited","9002312584","0.04","Provisions (Resale)","130214589","16/05/2018","Catering","Meals on Wheels","R4102"
"Wolverhampton City Council","http://opendatacommunities.org/id/metropolitan-district-council/wolverhampton","701547","Apetito Limited","9002312584","0.03","Provisions (Resale)","130214589","16/05/2018","Catering","Meals on Wheels","R4102"
"Wolverhampton City Council","http://opendatacommunities.org/id/metropolitan-district-council/wolverhampton","701547","Apetito Limited","9002322329","952.40","Provisions (Resale)","130215497","30/05/2018","Catering","Meals on Wheels","R4102"
"Wolverhampton City Council","http://opendatacommunities.org/id/metropolitan-district-council/wolverhampton","701547","Apetito Limited","9002301715","96.29","Provisions (Resale)","130213501","09/05/2018","Catering","Meals on Wheels","R4102"
"Wolverhampton City Council","http://opendatacommunities.org/id/metropolitan-district-council/wolverhampton","701594","Argos Business Solutions Limited","01644288","103.46","Equipment - Purchase","130212905","11/05/2018","Early Intervention","EIP Locality 2 � Bilston/Rocket Pool","R4000"
"Wolverhampton City Council","http://opendatacommunities.org/id/metropolitan-district-council/wolverhampton","701595","Argus Fire Protection Co.Limited","40698","150.00","R&M - Departmental planned (internal)","130214384","16/05/2018","Maintenance Programme","Centralised R&M","R2000"
"Wolverhampton City Council","http://opendatacommunities.org/id/metropolitan-district-council/wolverhampton","701603","Arnold Clark Finance Limited","HI2340378","12.75","Hire of Vehicles","190455293","09/05/2018","Fleet Services","Fleet Management","R3200"
"Wolverhampton City Council","http://opendatacommunities.org/id/metropolitan-district-council/wolverhampton","701603","Arnold Clark Finance Limited","HI2343991","18.12","Hire of Vehicles","190455299","09/05/2018","Fleet Services","Fleet Management","R3200"
"Wolverhampton City Council","http://opendatacommunities.org/id/metropolitan-district-council/wolverhampton","701603","Arnold Clark Finance Limited","HI2335663","18.12","Hire of Vehicles","190455286","09/05/2018","Fleet Services","Fleet Management","R3200"
"Wolverhampton City Council","http://opendatacommunities.org/id/metropolitan-district-council/wolverhampton","701603","Arnold Clark Finance Limited","HI2338332","36.24","Hire of Vehicles","190455288","09/05/2018","Fleet Services","Fleet Management","R3200"
"Wolverhampton City Council","http://opendatacommunities.org/id/metropolitan-district-council/wolverhampton","701603","Arnold Clark Finance Limited","HI2339093","68.25","Hire of Vehicles","190455289","09/05/2018","Fleet Services","Fleet Management","R3200"
"Wolverhampton City Council","http://opendatacommunities.org/id/metropolitan-district-council/wolverhampton","701603","Arnold Clark Finance Limited","HI2347837","18.12","Hire of Vehicles","190462884","25/05/2018","Fleet Services","Fleet Management","R3200"
"Wolverhampton City Council","http://opendatacommunities.org/id/metropolitan-district-council/wolverhampton","701603","Arnold Clark Finance Limited","HI2352324","18.12","Hire of Vehicles","190462895","25/05/2018","Fleet Services","Fleet Management","R3200"
"Wolverhampton City Council","http://opendatacommunities.org/id/metropolitan-district-council/wolverhampton","701603","Arnold Clark Finance Limited","HI2351444","54.60","Hire of Vehicles","190462891","25/05/2018","Fleet Services","Fleet Management","R3200"
"Wolverhampton City Council","http://opendatacommunities.org/id/metropolitan-district-council/wolverhampton","701603","Arnold Clark Finance Limited","HI2351448","60.48","Hire of Vehicles","190462893","25/05/2018","Fleet Services","Fleet Management","R3200"
"Wolverhampton City Council","http://opendatacommunities.org/id/metropolitan-district-council/wolverhampton","701603","Arnold Clark Finance Limited","HI2354053","41.88","Hire of Vehicles","190462898","25/05/2018","Fleet Services","Fleet Management","R3200"
"Wolverhampton City Council","http://opendatacommunities.org/id/metropolitan-district-council/wolverhampton","701603","Arnold Clark Finance Limited","HI2344566","15.15","Hire of Vehicles","190455300","09/05/2018","Fleet Services","Fleet Management","R3200"
"Wolverhampton City Council","http://opendatacommunities.org/id/metropolitan-district-council/wolverhampton","701603","Arnold Clark Finance Limited","HI2339094","68.25","Hire of Vehicles","190455290","09/05/2018","Fleet Services","Fleet Management","R3200"
"Wolverhampton City Council","http://opendatacommunities.org/id/metropolitan-district-council/wolverhampton","701603","Arnold Clark Finance Limited","HI2344734","81.25","Hire of Vehicles","190455301","09/05/2018","Fleet Services","Fleet Management","R3200"
"Wolverhampton City Council","http://opendatacommunities.org/id/metropolitan-district-council/wolverhampton","701603","Arnold Clark Finance Limited","HI2340379","18.12","Hire of Vehicles","190455294","09/05/2018","Fleet Services","Fleet Management","R3200"
"Wolverhampton City Council","http://opendatacommunities.org/id/metropolitan-district-council/wolverhampton","701603","Arnold Clark Finance Limited","HI2345877","18.12","Hire of Vehicles","190455302","09/05/2018","Fleet Services","Fleet Management","R3200"
"Wolverhampton City Council","http://opendatacommunities.org/id/metropolitan-district-council/wolverhampton","701603","Arnold Clark Finance Limited","HI2348975","18.12","Hire of Vehicles","190462886","25/05/2018","Fleet Services","Fleet Management","R3200"
"Wolverhampton City Council","http://opendatacommunities.org/id/metropolitan-district-council/wolverhampton","701603","Arnold Clark Finance Limited","HI2351446","54.60","Hire of Vehicles","190462892","25/05/2018","Fleet Services","Fleet Management","R3200"
"Wolverhampton City Council","http://opendatacommunities.org/id/metropolitan-district-council/wolverhampton","701603","Arnold Clark Finance Limited","HI2354054","41.88","Hire of Vehicles","190462899","25/05/2018","Fleet Services","Fleet Management","R3200"
"Wolverhampton City Council","http://opendatacommunities.org/id/metropolitan-district-council/wolverhampton","701603","Arnold Clark Finance Limited","HI2352771","18.12","Hire of Vehicles","190462896","25/05/2018","Fleet Services","Fleet Management","R3200"
"Wolverhampton City Council","http://opendatacommunities.org/id/metropolitan-district-council/wolverhampton","701603","Arnold Clark Finance Limited","HI2354236","68.25","Hire of Vehicles","190463079","30/05/2018","Fleet Services","Fleet Management","R3200"
"Wolverhampton City Council","http://opendatacommunities.org/id/metropolitan-district-council/wolverhampton","701603","Arnold Clark Finance Limited","HI2317574","18.12","Hire of Vehicles","190455283","09/05/2018","Fleet Services","Fleet Management","R3200"
"Wolverhampton City Council","http://opendatacommunities.org/id/metropolitan-district-council/wolverhampton","701603","Arnold Clark Finance Limited","HI2342409","18.12","Hire of Vehicles","190455296","09/05/2018","Fleet Services","Fleet Management","R3200"
"Wolverhampton City Council","http://opendatacommunities.org/id/metropolitan-district-council/wolverhampton","701603","Arnold Clark Finance Limited","HI2343483","68.25","Hire of Vehicles","190455298","09/05/2018","Fleet Services","Fleet Management","R3200"
"Wolverhampton City Council","http://opendatacommunities.org/id/metropolitan-district-council/wolverhampton","701603","Arnold Clark Finance Limited","HI2335491","68.25","Hire of Vehicles","190455285","09/05/2018","Fleet Services","Fleet Management","R3200"
"Wolverhampton City Council","http://opendatacommunities.org/id/metropolitan-district-council/wolverhampton","701603","Arnold Clark Finance Limited","HI2339639","41.88","Hire of Vehicles","190455292","09/05/2018","Fleet Services","Fleet Management","R3200"
"Wolverhampton City Council","http://opendatacommunities.org/id/metropolitan-district-council/wolverhampton","701603","Arnold Clark Finance Limited","HI2355533","48.75","Hire of Vehicles","190463081","30/05/2018","Fleet Services","Fleet Management","R3200"
"Wolverhampton City Council","http://opendatacommunities.org/id/metropolitan-district-council/wolverhampton","701603","Arnold Clark Finance Limited","HI2347313","68.25","Hire of Vehicles","190462883","25/05/2018","Fleet Services","Fleet Management","R3200"
"Wolverhampton City Council","http://opendatacommunities.org/id/metropolitan-district-council/wolverhampton","701603","Arnold Clark Finance Limited","HI2349773","41.88","Hire of Vehicles","190462889","25/05/2018","Fleet Services","Fleet Management","R3200"
"Wolverhampton City Council","http://opendatacommunities.org/id/metropolitan-district-council/wolverhampton","701603","Arnold Clark Finance Limited","HI2351450","16.25","Hire of Vehicles","190462894","25/05/2018","Fleet Services","Fleet Management","R3200"
"Wolverhampton City Council","http://opendatacommunities.org/id/metropolitan-district-council/wolverhampton","701603","Arnold Clark Finance Limited","HI2350380","18.12","Hire of Vehicles","190462890","25/05/2018","Fleet Services","Fleet Management","R3200"
"Wolverhampton City Council","http://opendatacommunities.org/id/metropolitan-district-council/wolverhampton","701603","Arnold Clark Finance Limited","HI2354055","18.12","Hire of Vehicles","190462900","25/05/2018","Fleet Services","Fleet Management","R3200"
"Wolverhampton City Council","http://opendatacommunities.org/id/metropolitan-district-council/wolverhampton","701603","Arnold Clark Finance Limited","HI2335490","68.25","Hire of Vehicles","190455284","09/05/2018","Fleet Services","Fleet Management","R3200"
"Wolverhampton City Council","http://opendatacommunities.org/id/metropolitan-district-council/wolverhampton","701603","Arnold Clark Finance Limited","HI2343482","68.25","Hire of Vehicles","190455297","09/05/2018","Fleet Services","Fleet Management","R3200"
"Wolverhampton City Council","http://opendatacommunities.org/id/metropolitan-district-council/wolverhampton","701603","Arnold Clark Finance Limited","HI2338331","23.25","Hire of Vehicles","190455287","09/05/2018","Fleet Services","Fleet Management","R3200"
"Wolverhampton City Council","http://opendatacommunities.org/id/metropolitan-district-council/wolverhampton","701603","Arnold Clark Finance Limited","HI2339638","41.88","Hire of Vehicles","190455291","09/05/2018","Fleet Services","Fleet Management","R3200"
"Wolverhampton City Council","http://opendatacommunities.org/id/metropolitan-district-council/wolverhampton","701603","Arnold Clark Finance Limited","HI2370736","18.12","Hire of Vehicles","190455303","09/05/2018","Fleet Services","Fleet Management","R3200"
"Wolverhampton City Council","http://opendatacommunities.org/id/metropolitan-district-council/wolverhampton","701603","Arnold Clark Finance Limited","HI2341525","18.12","Hire of Vehicles","190455295","09/05/2018","Fleet Services","Fleet Management","R3200"
"Wolverhampton City Council","http://opendatacommunities.org/id/metropolitan-district-council/wolverhampton","701603","Arnold Clark Finance Limited","HI2347311","68.25","Hire of Vehicles","190462882","25/05/2018","Fleet Services","Fleet Management","R3200"
"Wolverhampton City Council","http://opendatacommunities.org/id/metropolitan-district-council/wolverhampton","701603","Arnold Clark Finance Limited","HI2348540","100.80","Hire of Vehicles","190462885","25/05/2018","Fleet Services","Fleet Management","R3200"
"Wolverhampton City Council","http://opendatacommunities.org/id/metropolitan-district-council/wolverhampton","701603","Arnold Clark Finance Limited","HI2349580","18.12","Hire of Vehicles","190462887","25/05/2018","Fleet Services","Fleet Management","R3200"
"Wolverhampton City Council","http://opendatacommunities.org/id/metropolitan-district-council/wolverhampton","701603","Arnold Clark Finance Limited","HI2349725","41.88","Hire of Vehicles","190462888","25/05/2018","Fleet Services","Fleet Management","R3200"
"Wolverhampton City Council","http://opendatacommunities.org/id/metropolitan-district-council/wolverhampton","701603","Arnold Clark Finance Limited","HI2353261","18.12","Hire of Vehicles","190462897","25/05/2018","Fleet Services","Fleet Management","R3200"
"Wolverhampton City Council","http://opendatacommunities.org/id/metropolitan-district-council/wolverhampton","701603","Arnold Clark Finance Limited","HI2354237","68.25","Hire of Vehicles","190463080","30/05/2018","Fleet Services","Fleet Management","R3200"
"Wolverhampton City Council","http://opendatacommunities.org/id/metropolitan-district-council/wolverhampton","701613","Arthur Brett (Catering) Limited","ID1004994","150.98","Provisions (Resale)","130216088","23/05/2018","Visitor Economy","Bantock - Tea Rooms","R4102"
"Wolverhampton City Council","http://opendatacommunities.org/id/metropolitan-district-council/wolverhampton","701613","Arthur Brett (Catering) Limited","3004181","89.73","Provisions (Resale)","130216405","23/05/2018","Leisure Services","WV Active Catering","R4102"
"Wolverhampton City Council","http://opendatacommunities.org/id/metropolitan-district-council/wolverhampton","701613","Arthur Brett (Catering) Limited","ID1022101","44.35","Provisions (Resale)","130215183","23/05/2018","Older People Provider Services","Bradley Lodge Resource Centre","R4102"
"Wolverhampton City Council","http://opendatacommunities.org/id/metropolitan-district-council/wolverhampton","701613","Arthur Brett (Catering) Limited","ID1023373","144.55","Provisions (Resale)","130215777","16/05/2018","Visitor Economy","Bantock - Tea Rooms","R4102"
"Wolverhampton City Council","http://opendatacommunities.org/id/metropolitan-district-council/wolverhampton","701613","Arthur Brett (Catering) Limited","ID1026090","25.17","Provisions (Resale)","130216820","30/05/2018","Older People Provider Services","Blakenhall Resource Centre","R4102"
"Wolverhampton City Council","http://opendatacommunities.org/id/metropolitan-district-council/wolverhampton","701613","Arthur Brett (Catering) Limited","3004184","137.47","Provisions (Resale)","130217038","25/05/2018","Catering","Meals on Wheels","R4102"
"Wolverhampton City Council","http://opendatacommunities.org/id/metropolitan-district-council/wolverhampton","701613","Arthur Brett (Catering) Limited","3004185","18,395.05","Provisions (Resale)","130217039","25/05/2018","Catering","Education Catering - General Overheads","R4102"
"Wolverhampton City Council","http://opendatacommunities.org/id/metropolitan-district-council/wolverhampton","701613","Arthur Brett (Catering) Limited","ID1021046","111.42","Provisions (Resale)","130214593","09/05/2018","Visitor Economy","Bantock - Tea Rooms","R4102"
"Wolverhampton City Council","http://opendatacommunities.org/id/metropolitan-district-council/wolverhampton","701613","Arthur Brett (Catering) Limited","ID1021063","85.17","Provisions (Resale)","130214594","09/05/2018","Visitor Economy","Art Gallery Tea Room","R4102"
"Wolverhampton City Council","http://opendatacommunities.org/id/metropolitan-district-council/wolverhampton","701613","Arthur Brett (Catering) Limited","ID1024434","63.99","Provisions (Resale)","130215922","18/05/2018","Visitor Economy","Art Gallery Tea Room","R4102"
"Wolverhampton City Council","http://opendatacommunities.org/id/metropolitan-district-council/wolverhampton","701613","Arthur Brett (Catering) Limited","ID1019386","49.90","Provisions (Resale)","130213938","02/05/2018","Visitor Economy","Art Gallery Tea Room","R4102"
"Wolverhampton City Council","http://opendatacommunities.org/id/metropolitan-district-council/wolverhampton","701613","Arthur Brett (Catering) Limited","ID1021301","19.95","Provisions (Resale)","130214596","04/05/2018","Adult Education","Caf�","R4102"
"Wolverhampton City Council","http://opendatacommunities.org/id/metropolitan-district-council/wolverhampton","701613","Arthur Brett (Catering) Limited","ID1023153","10.39","Provisions (Resale)","130215920","16/05/2018","Adult Education","Caf�","R4102"
"Wolverhampton City Council","http://opendatacommunities.org/id/metropolitan-district-council/wolverhampton","701613","Arthur Brett (Catering) Limited","ID1026172","60.52","Provisions (Resale)","130216409","23/05/2018","Visitor Economy","Art Gallery Tea Room","R4102"
"Wolverhampton City Council","http://opendatacommunities.org/id/metropolitan-district-council/wolverhampton","701613","Arthur Brett (Catering) Limited","ID1023283","39.01","Provisions (Resale)","130215921","23/05/2018","Older People Provider Services","Bradley Lodge Resource Centre","R4102"
"Wolverhampton City Council","http://opendatacommunities.org/id/metropolitan-district-council/wolverhampton","701613","Arthur Brett (Catering) Limited","ID1025352","95.99","Provisions (Resale)","130216167","23/05/2018","Visitor Economy","Art Gallery Tea Room","R4102"
"Wolverhampton City Council","http://opendatacommunities.org/id/metropolitan-district-council/wolverhampton","701613","Arthur Brett (Catering) Limited","ID1025650","28.79","Provisions (Resale)","130216670","25/05/2018","Adult Education","Caf�","R4102"
"Wolverhampton City Council","http://opendatacommunities.org/id/metropolitan-district-council/wolverhampton","701613","Arthur Brett (Catering) Limited","ID1027465","92.97","Provisions (Resale)","130217041","30/05/2018","Visitor Economy","Art Gallery Tea Room","R4102"
"Wolverhampton City Council","http://opendatacommunities.org/id/metropolitan-district-council/wolverhampton","701613","Arthur Brett (Catering) Limited","ID1022269","41.01","Provisions (Resale)","130214970","09/05/2018","Adult Education","Caf�","R4102"
"Wolverhampton City Council","http://opendatacommunities.org/id/metropolitan-district-council/wolverhampton","701613","Arthur Brett (Catering) Limited","ID1021152","7.98","Provisions (Resale)","130214717","09/05/2018","Visitor Economy","Bantock - Tea Rooms","R4102"
"Wolverhampton City Council","http://opendatacommunities.org/id/metropolitan-district-council/wolverhampton","701613","Arthur Brett (Catering) Limited","ID1019967","94.63","Provisions (Resale)","130214094","02/05/2018","Visitor Economy","Art Gallery Tea Room","R4102"
"Wolverhampton City Council","http://opendatacommunities.org/id/metropolitan-district-council/wolverhampton","701613","Arthur Brett (Catering) Limited","ID1024414","143.20","Provisions (Resale)","130216314","18/05/2018","Visitor Economy","Bantock - Tea Rooms","R4102"
"Wolverhampton City Council","http://opendatacommunities.org/id/metropolitan-district-council/wolverhampton","701613","Arthur Brett (Catering) Limited","ID1020237","48.46","Provisions (Resale)","130214095","04/05/2018","Adult Education","Caf�","R4102"
"Wolverhampton City Council","http://opendatacommunities.org/id/metropolitan-district-council/wolverhampton","701613","Arthur Brett (Catering) Limited","ID1022640","106.00","Provisions (Resale)","130215184","09/05/2018","Visitor Economy","Art Gallery Tea Room","R4102"
"Wolverhampton City Council","http://opendatacommunities.org/id/metropolitan-district-council/wolverhampton","701613","Arthur Brett (Catering) Limited","ID1022363","85.77","Provisions (Resale)","130214971","09/05/2018","Visitor Economy","Bantock - Tea Rooms","R4102"
"Wolverhampton City Council","http://opendatacommunities.org/id/metropolitan-district-council/wolverhampton","701613","Arthur Brett (Catering) Limited","ID1023030","142.72","Provisions (Resale)","130215919","16/05/2018","Visitor Economy","Bantock - Tea Rooms","R4102"
"Wolverhampton City Council","http://opendatacommunities.org/id/metropolitan-district-council/wolverhampton","701613","Arthur Brett (Catering) Limited","ID1016144","29.48","Provisions (Resale)","130214385","16/05/2018","Older People Provider Services","Bradley Lodge Resource Centre","R4102"
"Wolverhampton City Council","http://opendatacommunities.org/id/metropolitan-district-council/wolverhampton","701613","Arthur Brett (Catering) Limited","ID1021721","22.05","Provisions (Resale)","130214920","23/05/2018","Older People Provider Services","Bradley Lodge Resource Centre","R4102"
"Wolverhampton City Council","http://opendatacommunities.org/id/metropolitan-district-council/wolverhampton","701613","Arthur Brett (Catering) Limited","ID1021131","47.95","Provisions (Resale)","130214595","23/05/2018","Older People Provider Services","Bradley Lodge Resource Centre","R4102"
"Wolverhampton City Council","http://opendatacommunities.org/id/metropolitan-district-council/wolverhampton","701613","Arthur Brett (Catering) Limited","3004182","252.10","Provisions (Resale)","130216406","23/05/2018","Leisure Services","Bert Williams Leisure Centre Caf�","R4102"
"Wolverhampton City Council","http://opendatacommunities.org/id/metropolitan-district-council/wolverhampton","701613","Arthur Brett (Catering) Limited","ID1025507","42.22","Provisions (Resale)","130216407","23/05/2018","Older People Provider Services","Bradley Lodge Resource Centre","R4102"
"Wolverhampton City Council","http://opendatacommunities.org/id/metropolitan-district-council/wolverhampton","701613","Arthur Brett (Catering) Limited","ID1025912","85.11","Provisions (Resale)","130216408","23/05/2018","Visitor Economy","Bantock - Tea Rooms","R4102"
"Wolverhampton City Council","http://opendatacommunities.org/id/metropolitan-district-council/wolverhampton","701613","Arthur Brett (Catering) Limited","ID1027699","29.59","Provisions (Resale)","130217043","30/05/2018","Adult Education","Caf�","R4102"
"Wolverhampton City Council","http://opendatacommunities.org/id/metropolitan-district-council/wolverhampton","701613","Arthur Brett (Catering) Limited","ID1024750","39.59","Provisions (Resale)","130216166","25/05/2018","Adult Education","Caf�","R4102"
"Wolverhampton City Council","http://opendatacommunities.org/id/metropolitan-district-council/wolverhampton","701613","Arthur Brett (Catering) Limited","ID1026875","11.48","Provisions (Resale)","130216822","25/05/2018","Adult Education","Caf�","R4102"
"Wolverhampton City Council","http://opendatacommunities.org/id/metropolitan-district-council/wolverhampton","701613","Arthur Brett (Catering) Limited","3004183","1,007.32","Provisions (Resale)","130217037","25/05/2018","Catering","Civic Centre Catering","R4102"
"Wolverhampton City Council","http://opendatacommunities.org/id/metropolitan-district-council/wolverhampton","701613","Arthur Brett (Catering) Limited","ID1018970","13.87","Provisions (Resale)","130214091","11/05/2018","Older People Provider Services","Blakenhall Resource Centre","R4102"
"Wolverhampton City Council","http://opendatacommunities.org/id/metropolitan-district-council/wolverhampton","701613","Arthur Brett (Catering) Limited","ID1019999","27.23","Provisions (Resale)","130214243","02/05/2018","Visitor Economy","Bantock - Tea Rooms","R4102"
"Wolverhampton City Council","http://opendatacommunities.org/id/metropolitan-district-council/wolverhampton","701613","Arthur Brett (Catering) Limited","3103183","30,129.46","Provisions (Resale)","130214590","02/05/2018","Catering","Education Catering - General Overheads","R4102"
"Wolverhampton City Council","http://opendatacommunities.org/id/metropolitan-district-council/wolverhampton","701613","Arthur Brett (Catering) Limited","3103185","172.27","Provisions (Resale)","130214592","02/05/2018","Catering","Meals on Wheels","R4102"
"Wolverhampton City Council","http://opendatacommunities.org/id/metropolitan-district-council/wolverhampton","701613","Arthur Brett (Catering) Limited","ID1017835","39.93","Provisions (Resale)","130214242","23/05/2018","Older People Provider Services","Bradley Lodge Resource Centre","R4102"
"Wolverhampton City Council","http://opendatacommunities.org/id/metropolitan-district-council/wolverhampton","701613","Arthur Brett (Catering) Limited","ID1023210","27.43","Provisions (Resale)","130215776","23/05/2018","Older People Provider Services","Blakenhall Resource Centre","R4102"
"Wolverhampton City Council","http://opendatacommunities.org/id/metropolitan-district-council/wolverhampton","701613","Arthur Brett (Catering) Limited","ID1024373","16.21","Provisions (Resale)","130216089","23/05/2018","Older People Provider Services","Blakenhall Resource Centre","R4102"
"Wolverhampton City Council","http://opendatacommunities.org/id/metropolitan-district-council/wolverhampton","701613","Arthur Brett (Catering) Limited","ID1022551","33.86","Provisions (Resale)","130215775","23/05/2018","Older People Provider Services","Bradley Lodge Resource Centre","R4102"
"Wolverhampton City Council","http://opendatacommunities.org/id/metropolitan-district-council/wolverhampton","701613","Arthur Brett (Catering) Limited","ID1026582","29.23","Provisions (Resale)","130216671","25/05/2018","Visitor Economy","Art Gallery Tea Room","R4102"
"Wolverhampton City Council","http://opendatacommunities.org/id/metropolitan-district-council/wolverhampton","701613","Arthur Brett (Catering) Limited","ID1021447","80.65","Provisions (Resale)","130214969","09/05/2018","Visitor Economy","Bantock - Tea Rooms","R4102"
"Wolverhampton City Council","http://opendatacommunities.org/id/metropolitan-district-council/wolverhampton","701613","Arthur Brett (Catering) Limited","ID1021921","99.90","Provisions (Resale)","130214921","09/05/2018","Visitor Economy","Art Gallery Tea Room","R4102"
"Wolverhampton City Council","http://opendatacommunities.org/id/metropolitan-district-council/wolverhampton","701613","Arthur Brett (Catering) Limited","ID1023378","24.27","Provisions (Resale)","130215778","16/05/2018","Visitor Economy","Art Gallery Tea Room","R4102"
"Wolverhampton City Council","http://opendatacommunities.org/id/metropolitan-district-council/wolverhampton","701613","Arthur Brett (Catering) Limited","ID1023684","19.15","Provisions (Resale)","130215779","16/05/2018","Adult Education","Caf�","R4102"
"Wolverhampton City Council","http://opendatacommunities.org/id/metropolitan-district-council/wolverhampton","701613","Arthur Brett (Catering) Limited","ID1019481","132.40","Provisions (Resale)","130214093","02/05/2018","Visitor Economy","Bantock - Tea Rooms","R4102"
"Wolverhampton City Council","http://opendatacommunities.org/id/metropolitan-district-council/wolverhampton","701613","Arthur Brett (Catering) Limited","3103184","1,000.02","Provisions (Resale)","130214591","02/05/2018","Catering","Civic Centre Catering","R4102"
"Wolverhampton City Council","http://opendatacommunities.org/id/metropolitan-district-council/wolverhampton","701613","Arthur Brett (Catering) Limited","ID1020696","38.97","Provisions (Resale)","130214386","02/05/2018","Visitor Economy","Bantock - Tea Rooms","R4102"
"Wolverhampton City Council","http://opendatacommunities.org/id/metropolitan-district-council/wolverhampton","701636","Asdan Limited","268775","395.00","Training Expenses","130215498","16/05/2018","Youth Offending","Youth Offending Team","R1650"
"Wolverhampton City Council","http://opendatacommunities.org/id/metropolitan-district-council/wolverhampton","701643","Ashdown Supplies","15354","348.00","Materials","130217044","25/05/2018","Bereavement Services","Cemeteries","R4007"
"Wolverhampton City Council","http://opendatacommunities.org/id/metropolitan-district-council/wolverhampton","701650","Ashtead Plant Hire Company Limited","17123361","1,625.00","Room Hire","130216673","30/05/2018","Public Service Reform","Local Government Elections","R2201"
"Wolverhampton City Council","http://opendatacommunities.org/id/metropolitan-district-council/wolverhampton","701650","Ashtead Plant Hire Company Limited","17123360","1,040.00","Room Hire","130216672","30/05/2018","Public Service Reform","Local Government Elections","R2201"
"Wolverhampton City Council","http://opendatacommunities.org/id/metropolitan-district-council/wolverhampton","701656","Askews & Holts Library Services Limited","5710890","108.09","Books","130215675","25/05/2018","Strategic Organisation Development","Global Budgets","R4309"
"Wolverhampton City Council","http://opendatacommunities.org/id/metropolitan-district-council/wolverhampton","701656","Askews & Holts Library Services Limited","5717038","280.12","Books","130214973","25/05/2018","Strategic Organisation Development","Global Budgets","R4309"
"Wolverhampton City Council","http://opendatacommunities.org/id/metropolitan-district-council/wolverhampton","701656","Askews & Holts Library Services Limited","5708637","300.20","Books","130214597","30/05/2018","Strategic Organisation Development","Global Budgets","R4309"
"Wolverhampton City Council","http://opendatacommunities.org/id/metropolitan-district-council/wolverhampton","701656","Askews & Holts Library Services Limited","5688473","11.45","Books","130213120","30/05/2018","Strategic Organisation Development","Global Budgets","R4309"
"Wolverhampton City Council","http://opendatacommunities.org/id/metropolitan-district-council/wolverhampton","701656","Askews & Holts Library Services Limited","5696097","602.67","Books","130213505","30/05/2018","Strategic Organisation Development","Global Budgets","R4309"
"Wolverhampton City Council","http://opendatacommunities.org/id/metropolitan-district-council/wolverhampton","701656","Askews & Holts Library Services Limited","5705029","14.94","Books","130213508","30/05/2018","Strategic Organisation Development","Global Budgets","R4309"
"Wolverhampton City Council","http://opendatacommunities.org/id/metropolitan-district-council/wolverhampton","701656","Askews & Holts Library Services Limited","5708636","6.23","Books","130214244","25/05/2018","Strategic Organisation Development","Global Budgets","R4309"
"Wolverhampton City Council","http://opendatacommunities.org/id/metropolitan-district-council/wolverhampton","701656","Askews & Holts Library Services Limited","5689777","425.83","Books","130213125","30/05/2018","Strategic Organisation Development","Global Budgets","R4309"
"Wolverhampton City Council","http://opendatacommunities.org/id/metropolitan-district-council/wolverhampton","701656","Askews & Holts Library Services Limited","5714323","62.30","Books","130215678","30/05/2018","Strategic Organisation Development","Global Budgets","R4309"
"Wolverhampton City Council","http://opendatacommunities.org/id/metropolitan-district-council/wolverhampton","701656","Askews & Holts Library Services Limited","5685502","220.13","Books","130212910","30/05/2018","Strategic Organisation Development","Global Budgets","R4309"
"Wolverhampton City Council","http://opendatacommunities.org/id/metropolitan-district-council/wolverhampton","701656","Askews & Holts Library Services Limited","5689732","575.20","Books","130213123","30/05/2018","Strategic Organisation Development","Global Budgets","R4309"
"Wolverhampton City Council","http://opendatacommunities.org/id/metropolitan-district-council/wolverhampton","701656","Askews & Holts Library Services Limited","5696098","12.46","Books","130213506","30/05/2018","Strategic Organisation Development","Global Budgets","R4309"
"Wolverhampton City Council","http://opendatacommunities.org/id/metropolitan-district-council/wolverhampton","701656","Askews & Holts Library Services Limited","5717096","386.23","Books","130214974","25/05/2018","Strategic Organisation Development","Global Budgets","R4309"
"Wolverhampton City Council","http://opendatacommunities.org/id/metropolitan-district-council/wolverhampton","701656","Askews & Holts Library Services Limited","14272","3,100.00","Books","130214972","25/05/2018","Strategic Organisation Development","Global Budgets","R4309"
"Wolverhampton City Council","http://opendatacommunities.org/id/metropolitan-district-council/wolverhampton","701656","Askews & Holts Library Services Limited","5682524","5.07","Books","130212908","25/05/2018","Strategic Organisation Development","Global Budgets","R4309"
"Wolverhampton City Council","http://opendatacommunities.org/id/metropolitan-district-council/wolverhampton","701656","Askews & Holts Library Services Limited","5689731","80.15","Books","130213122","30/05/2018","Strategic Organisation Development","Global Budgets","R4309"
"Wolverhampton City Council","http://opendatacommunities.org/id/metropolitan-district-council/wolverhampton","701656","Askews & Holts Library Services Limited","158536E","-69.36","Books","130203804","25/05/2018","Strategic Organisation Development","Global Budgets","R4309"
"Wolverhampton City Council","http://opendatacommunities.org/id/metropolitan-district-council/wolverhampton","701656","Askews & Holts Library Services Limited","5718713","142.36","Books","130214718","25/05/2018","Strategic Organisation Development","Global Budgets","R4309"
"Wolverhampton City Council","http://opendatacommunities.org/id/metropolitan-district-council/wolverhampton","701656","Askews & Holts Library Services Limited","5714322","29.14","Books","130215677","30/05/2018","Strategic Organisation Development","Global Budgets","R4309"
"Wolverhampton City Council","http://opendatacommunities.org/id/metropolitan-district-council/wolverhampton","701656","Askews & Holts Library Services Limited","5688474","639.98","Books","130213121","30/05/2018","Strategic Organisation Development","Global Budgets","R4309"
"Wolverhampton City Council","http://opendatacommunities.org/id/metropolitan-district-council/wolverhampton","701656","Askews & Holts Library Services Limited","5686638","176.43","Books","130212912","30/05/2018","Strategic Organisation Development","Global Budgets","R4309"
"Wolverhampton City Council","http://opendatacommunities.org/id/metropolitan-district-council/wolverhampton","701656","Askews & Holts Library Services Limited","5689733","259.81","Books","130213124","30/05/2018","Strategic Organisation Development","Global Budgets","R4309"
"Wolverhampton City Council","http://opendatacommunities.org/id/metropolitan-district-council/wolverhampton","701656","Askews & Holts Library Services Limited","5691948","458.45","Books","130213126","30/05/2018","Strategic Organisation Development","Global Budgets","R4309"
"Wolverhampton City Council","http://opendatacommunities.org/id/metropolitan-district-council/wolverhampton","701656","Askews & Holts Library Services Limited","5711338","309.82","Books","130215676","25/05/2018","Strategic Organisation Development","Global Budgets","R4309"
"Wolverhampton City Council","http://opendatacommunities.org/id/metropolitan-district-council/wolverhampton","701656","Askews & Holts Library Services Limited","5719947","14.94","Books","130215679","30/05/2018","Strategic Organisation Development","Global Budgets","R4309"
"Wolverhampton City Council","http://opendatacommunities.org/id/metropolitan-district-council/wolverhampton","701656","Askews & Holts Library Services Limited","159418E","-11.56","Books","130209943","25/05/2018","Strategic Organisation Development","Global Budgets","R4309"
"Wolverhampton City Council","http://opendatacommunities.org/id/metropolitan-district-council/wolverhampton","701656","Askews & Holts Library Services Limited","5710889","5.65","Books","130215674","30/05/2018","Strategic Organisation Development","Global Budgets","R4309"
"Wolverhampton City Council","http://opendatacommunities.org/id/metropolitan-district-council/wolverhampton","701656","Askews & Holts Library Services Limited","5686637","8.55","Books","130212911","30/05/2018","Strategic Organisation Development","Global Budgets","R4309"
"Wolverhampton City Council","http://opendatacommunities.org/id/metropolitan-district-council/wolverhampton","701656","Askews & Holts Library Services Limited","5699063","176.48","Books","130213507","30/05/2018","Strategic Organisation Development","Global Budgets","R4309"
"Wolverhampton City Council","http://opendatacommunities.org/id/metropolitan-district-council/wolverhampton","701677","Assoc Of Educational Psychologists","8066","700.00","Staff Advertising Costs","130213127","09/05/2018","Inclusion Support","Inclusion Support","R1700"
"Wolverhampton City Council","http://opendatacommunities.org/id/metropolitan-district-council/wolverhampton","701680","Associated  Radio Taxi�s","ART-17-009761","1,391.80","Client Transport","130214953","02/05/2018","Special Educational Needs","Primary - Transport","R3042"
"Wolverhampton City Council","http://opendatacommunities.org/id/metropolitan-district-council/wolverhampton","701680","Associated  Radio Taxi�s","009755","636.40","Client Transport","130216415","18/05/2018","Special Educational Needs","Secondary- Transport","R3042"
"Wolverhampton City Council","http://opendatacommunities.org/id/metropolitan-district-council/wolverhampton","701680","Associated  Radio Taxi�s","009752","578.60","Client Transport","130216412","18/05/2018","Special Educational Needs","Special - Transport","R3042"
"Wolverhampton City Council","http://opendatacommunities.org/id/metropolitan-district-council/wolverhampton","701680","Associated  Radio Taxi�s","ART-17-009757","950.00","Client Transport","130215186","04/05/2018","Special Educational Needs","Secondary- Transport","R3042"
"Wolverhampton City Council","http://opendatacommunities.org/id/metropolitan-district-council/wolverhampton","701680","Associated  Radio Taxi�s","009753","589.82","Client Transport","130216413","18/05/2018","Special Educational Needs","Primary - Transport","R3042"
"Wolverhampton City Council","http://opendatacommunities.org/id/metropolitan-district-council/wolverhampton","701680","Associated  Radio Taxi�s","009754","765.49","Client Transport","130216414","18/05/2018","Special Educational Needs","Primary - Transport","R3042"
"Wolverhampton City Council","http://opendatacommunities.org/id/metropolitan-district-council/wolverhampton","701680","Associated  Radio Taxi�s","ART-17-009762","1,272.80","Client Transport","130214912","02/05/2018","Special Educational Needs","Secondary- Transport","R3042"
"Wolverhampton City Council","http://opendatacommunities.org/id/metropolitan-district-council/wolverhampton","701680","Associated  Radio Taxi�s","INV35","185.20","Client Transport","130215923","25/05/2018","Child Protection","Childrens with Disabilities Team","R3042"
"Wolverhampton City Council","http://opendatacommunities.org/id/metropolitan-district-council/wolverhampton","701680","Associated  Radio Taxi�s","009751","524.97","Client Transport","130216411","18/05/2018","Special Educational Needs","Secondary- Transport","R3042"
"Wolverhampton City Council","http://opendatacommunities.org/id/metropolitan-district-council/wolverhampton","701680","Associated  Radio Taxi�s","ART-17-009759","1,052.00","Client Transport","130214911","02/05/2018","Special Educational Needs","Special - Transport","R3042"
"Wolverhampton City Council","http://opendatacommunities.org/id/metropolitan-district-council/wolverhampton","701680","Associated  Radio Taxi�s","ART-17-009758","1,110.20","Client Transport","130214910","02/05/2018","Special Educational Needs","Secondary- Transport","R3042"
"Wolverhampton City Council","http://opendatacommunities.org/id/metropolitan-district-council/wolverhampton","701680","Associated  Radio Taxi�s","009750","522.50","Client Transport","130216410","18/05/2018","Special Educational Needs","Secondary- Transport","R3042"
"Wolverhampton City Council","http://opendatacommunities.org/id/metropolitan-district-council/wolverhampton","701739","Axiom Building Solutions","05606","10,850.00","Construction and Conversion","130214598","23/05/2018","-","Capital Maintenance - Heating Pipework Upgrades","C1100"
"Wolverhampton City Council","http://opendatacommunities.org/id/metropolitan-district-council/wolverhampton","701739","Axiom Building Solutions","05576","4,650.00","R&M - Departmental planned (external)","130213688","16/05/2018","School Planning & Resources","Other Support Services","R2001"
"Wolverhampton City Council","http://opendatacommunities.org/id/metropolitan-district-council/wolverhampton","701771","Back Care Solutions Limited","60896","838.30","Equipment - Purchase","130213939","16/05/2018","Adults Assessment and Care Management MASH","Adult MASH","R4000"
"Wolverhampton City Council","http://opendatacommunities.org/id/metropolitan-district-council/wolverhampton","701787","Baker Hall Limited","WV/04/18","542.50","Services - Consultants","130217212","25/05/2018","Planning","Building Consultancy","R4404"
"Wolverhampton City Council","http://opendatacommunities.org/id/metropolitan-district-council/wolverhampton","701787","Baker Hall Limited","WV/04/18","980.00","Services - Consultants","130217212","25/05/2018","Planning","Building Consultancy","R4404"
"Wolverhampton City Council","http://opendatacommunities.org/id/metropolitan-district-council/wolverhampton","701797","Barber Of Sheffield Limited","604439","142.50","Equipment - Purchase","130214719","23/05/2018","Bereavement Services","Coroners","R4000"
"Wolverhampton City Council","http://opendatacommunities.org/id/metropolitan-district-council/wolverhampton","701805","Barnardos Childrens Charity","146515906","18,000.00","TPP - Payments to voluntary groups","130215680","16/05/2018","Looked After Children","Adoption and Residence Team & Allowances","R5200"
"Wolverhampton City Council","http://opendatacommunities.org/id/metropolitan-district-council/wolverhampton","701805","Barnardos Childrens Charity","242002614","2,500.00","TPP - Short Breaks","130215681","18/05/2018","Child Protection","Childrens with Disabilities Team","R5500"
"Wolverhampton City Council","http://opendatacommunities.org/id/metropolitan-district-council/wolverhampton","701805","Barnardos Childrens Charity","242002613","2,500.00","TPP - Short Breaks","130214247","18/05/2018","Child Protection","Short Breaks","R5500"
"Wolverhampton City Council","http://opendatacommunities.org/id/metropolitan-district-council/wolverhampton","701817","Base 25","3426","360.00","Section 17","130213305","02/05/2018","Child Protection","CIN/CP Social Work Unit - Area 8","R6403"
"Wolverhampton City Council","http://opendatacommunities.org/id/metropolitan-district-council/wolverhampton","701817","Base 25","3299","290.00","Services - Professional Fees","130213689","02/05/2018","Early Intervention","EIP Locality 1 - Eastfields","R4400"
"Wolverhampton City Council","http://opendatacommunities.org/id/metropolitan-district-council/wolverhampton","701832","Bbp.Security Services & Training Limited","245WCC230418","462.00","Services - Security","130214098","02/05/2018","Maintenance Programme","Asset Management Team","R4405"
"Wolverhampton City Council","http://opendatacommunities.org/id/metropolitan-district-council/wolverhampton","701832","Bbp.Security Services & Training Limited","250WCC230418","1,815.00","Services - Security","130214103","02/05/2018","Facilities Management","Management of Vacant Properties","R4405"
"Wolverhampton City Council","http://opendatacommunities.org/id/metropolitan-district-council/wolverhampton","701832","Bbp.Security Services & Training Limited","250WCC230418","90.00","Services - Security","130214103","02/05/2018","Facilities Management","Management of Vacant Properties","R4405"
"Wolverhampton City Council","http://opendatacommunities.org/id/metropolitan-district-council/wolverhampton","701832","Bbp.Security Services & Training Limited","250WCC230418","235.00","Services - Security","130214103","02/05/2018","Facilities Management","Management of Vacant Properties","R4405"
"Wolverhampton City Council","http://opendatacommunities.org/id/metropolitan-district-council/wolverhampton","701832","Bbp.Security Services & Training Limited","1042CIV100518OE","2,812.75","Services - Security","130216323","18/05/2018","Visitor Economy","Vaisakhi","R4405"
"Wolverhampton City Council","http://opendatacommunities.org/id/metropolitan-district-council/wolverhampton","701832","Bbp.Security Services & Training Limited","258WCC170518","8,736.00","Services - Security","130216679","23/05/2018","Facilities Management","Management of Vacant Properties","R4405"
"Wolverhampton City Council","http://opendatacommunities.org/id/metropolitan-district-council/wolverhampton","701832","Bbp.Security Services & Training Limited","260WCC170518","2,100.00","Services - Security","130216681","23/05/2018","Facilities Management","i10 Facilities Management","R4405"
"Wolverhampton City Council","http://opendatacommunities.org/id/metropolitan-district-council/wolverhampton","701832","Bbp.Security Services & Training Limited","253WCC230418","50.00","Services - Security","130214106","02/05/2018","Facilities Management","Civic Centre","R4405"
"Wolverhampton City Council","http://opendatacommunities.org/id/metropolitan-district-council/wolverhampton","701832","Bbp.Security Services & Training Limited","252WCC230418","1,739.00","Services - Security","130214105","02/05/2018","Facilities Management","Parkfields Office Accomodation","R4405"
"Wolverhampton City Council","http://opendatacommunities.org/id/metropolitan-district-council/wolverhampton","701832","Bbp.Security Services & Training Limited","255WCC170518","525.25","Services - Security","130216676","23/05/2018","Maintenance Programme","Asset Management Team","R4405"
"Wolverhampton City Council","http://opendatacommunities.org/id/metropolitan-district-council/wolverhampton","701832","Bbp.Security Services & Training Limited","251WCC230418","8,680.00","Services - Security","130214104","02/05/2018","Facilities Management","Management of Vacant Properties","R4405"
"Wolverhampton City Council","http://opendatacommunities.org/id/metropolitan-district-council/wolverhampton","701832","Bbp.Security Services & Training Limited","248WCC230418","2,100.00","Services - Security","130214101","02/05/2018","Facilities Management","i10 Facilities Management","R4405"
"Wolverhampton City Council","http://opendatacommunities.org/id/metropolitan-district-council/wolverhampton","701832","Bbp.Security Services & Training Limited","1043CIV150518OE","12,535.41","Services - Security","130216675","23/05/2018","Public Service Reform","Civic Events","R4405"
"Wolverhampton City Council","http://opendatacommunities.org/id/metropolitan-district-council/wolverhampton","701832","Bbp.Security Services & Training Limited","256WCC170518","253.00","Services - Security","130216677","23/05/2018","Maintenance Programme","Asset Management Team","R4405"
"Wolverhampton City Council","http://opendatacommunities.org/id/metropolitan-district-council/wolverhampton","701832","Bbp.Security Services & Training Limited","257WCC170518","1,882.13","Services - Security","130216678","23/05/2018","Facilities Management","Civic Centre","R4405"
"Wolverhampton City Council","http://opendatacommunities.org/id/metropolitan-district-council/wolverhampton","701832","Bbp.Security Services & Training Limited","247WCC230418","1,975.00","Services - Security","130214100","09/05/2018","Facilities Management","Civic Centre","R4405"
"Wolverhampton City Council","http://opendatacommunities.org/id/metropolitan-district-council/wolverhampton","701832","Bbp.Security Services & Training Limited","254WCC230418","462.00","Services - Security","130214107","02/05/2018","Looked After Children","Head of Service - LAC","R4405"
"Wolverhampton City Council","http://opendatacommunities.org/id/metropolitan-district-council/wolverhampton","701832","Bbp.Security Services & Training Limited","249WCC230418","242.00","Services - Security","130214102","02/05/2018","Facilities Management","Parkfields Office Accomodation","R4405"
"Wolverhampton City Council","http://opendatacommunities.org/id/metropolitan-district-council/wolverhampton","701832","Bbp.Security Services & Training Limited","261WCC170518","96.00","Services - Security","130216682","23/05/2018","Strategic Organisation Development","East Park Library (Prev Eastfield LP EA)","R4405"
"Wolverhampton City Council","http://opendatacommunities.org/id/metropolitan-district-council/wolverhampton","701832","Bbp.Security Services & Training Limited","261WCC170518","60.00","Services - Security","130216682","23/05/2018","Strategic Organisation Development","Finchfield Library","R4405"
"Wolverhampton City Council","http://opendatacommunities.org/id/metropolitan-district-council/wolverhampton","701832","Bbp.Security Services & Training Limited","261WCC170518","96.00","Services - Security","130216682","23/05/2018","Strategic Organisation Development","Low Hill Library","R4405"
"Wolverhampton City Council","http://opendatacommunities.org/id/metropolitan-district-council/wolverhampton","701832","Bbp.Security Services & Training Limited","261WCC170518","60.00","Services - Security","130216682","23/05/2018","Strategic Organisation Development","Spring Vale Library","R4405"
"Wolverhampton City Council","http://opendatacommunities.org/id/metropolitan-district-council/wolverhampton","701832","Bbp.Security Services & Training Limited","261WCC170518","123.00","Services - Security","130216682","23/05/2018","Strategic Organisation Development","Tettenhall Library","R4405"
"Wolverhampton City Council","http://opendatacommunities.org/id/metropolitan-district-council/wolverhampton","701832","Bbp.Security Services & Training Limited","261WCC170518","114.00","Services - Security","130216682","23/05/2018","Strategic Organisation Development","Warstones Library","R4405"
"Wolverhampton City Council","http://opendatacommunities.org/id/metropolitan-district-council/wolverhampton","701832","Bbp.Security Services & Training Limited","261WCC170518","114.00","Services - Security","130216682","23/05/2018","Strategic Organisation Development","Whitmore Reans Library","R4405"
"Wolverhampton City Council","http://opendatacommunities.org/id/metropolitan-district-council/wolverhampton","701832","Bbp.Security Services & Training Limited","259WCC170518","2,367.75","Services - Security","130216680","23/05/2018","Facilities Management","Parkfields Office Accomodation","R4405"
"Wolverhampton City Council","http://opendatacommunities.org/id/metropolitan-district-council/wolverhampton","701832","Bbp.Security Services & Training Limited","246WCC230418","1,360.00","Services - Security","130214099","09/05/2018","Facilities Management","Parkfields Office Accomodation","R4405"
"Wolverhampton City Council","http://opendatacommunities.org/id/metropolitan-district-council/wolverhampton","701832","Bbp.Security Services & Training Limited","246WCC230418","1,665.00","Services - Security","130214099","09/05/2018","Facilities Management","Parkfields Office Accomodation","R4405"
"Wolverhampton City Council","http://opendatacommunities.org/id/metropolitan-district-council/wolverhampton","701832","Bbp.Security Services & Training Limited","246WCC230418","600.00","Services - Security","130214099","09/05/2018","Facilities Management","Parkfields Office Accomodation","R4405"
"Wolverhampton City Council","http://opendatacommunities.org/id/metropolitan-district-council/wolverhampton","701835","BCC Mac T/A St Michaels Catholic","St Michael�s Catholic Academy Early Years Spring Term Final 1718","21,055.50","Grant Payments","190458585","18/05/2018","Schools","Academy Early years","R4700"
"Wolverhampton City Council","http://opendatacommunities.org/id/metropolitan-district-council/wolverhampton","701835","BCC Mac T/A St Michaels Catholic","St Michaels Catholic DAF Summ 18 Payment x 1","615.00","Grant Payments","190453446","02/05/2018","Early Years","Early Years Disability Access Fund (DAF)","R4700"
"Wolverhampton City Council","http://opendatacommunities.org/id/metropolitan-district-council/wolverhampton","701837","SS Peter & Paul Cath. Primary & Nursery","SS Peter & Paul Catholic Academy Early Years Payment Spring Term Final 1718","17,865.33","Grant Payments","190458586","18/05/2018","Schools","Academy Early years","R4700"
"Wolverhampton City Council","http://opendatacommunities.org/id/metropolitan-district-council/wolverhampton","701867","Believe To Achieve Limited","13370","2,272.74","Grant Payments","130214388","02/05/2018","Community Safety","SWP - Infrastructure","R4700"
"Wolverhampton City Council","http://opendatacommunities.org/id/metropolitan-district-council/wolverhampton","701880","Berendsen UK Limited","SN2856187","225.30","Protective Clothing","190455341","09/05/2018","Fleet Services","Fleet Management","R4200"
"Wolverhampton City Council","http://opendatacommunities.org/id/metropolitan-district-council/wolverhampton","701880","Berendsen UK Limited","SN2834736","180.24","Protective Clothing","190461362","23/05/2018","Fleet Services","Fleet Management","R4200"
"Wolverhampton City Council","http://opendatacommunities.org/id/metropolitan-district-council/wolverhampton","701905","Bevan Brittan Llp","10016776","850.00","Services - Professional Fees","130214108","16/05/2018","Legal Services","Centralised External Legal Costs","R4400"
"Wolverhampton City Council","http://opendatacommunities.org/id/metropolitan-district-council/wolverhampton","701944","Birmingham CC - General Fund","9002393205","9,387.10","Comms - Postage","130217213","25/05/2018","ICTS","Document Centre - General","R4503"
"Wolverhampton City Council","http://opendatacommunities.org/id/metropolitan-district-council/wolverhampton","701944","Birmingham CC - General Fund","9002453717","14,444.95","Comms - Postage","130214955","04/05/2018","ICTS","Document Centre - General","R4503"
"Wolverhampton City Council","http://opendatacommunities.org/id/metropolitan-district-council/wolverhampton","701944","Birmingham CC - General Fund","9002461518","10,687.09","Comms - Postage","130212736","09/05/2018","ICTS","Document Centre - General","R4503"
"Wolverhampton City Council","http://opendatacommunities.org/id/metropolitan-district-council/wolverhampton","701944","Birmingham CC - General Fund","Refund super levies 17/18","12,913.90","Enhanced Pension","190454003","04/05/2018","Central Corporate Budgets","Local Government Reorganisation","R1301"
"Wolverhampton City Council","http://opendatacommunities.org/id/metropolitan-district-council/wolverhampton","701963","Black Country Consortium Limited","1886","80,222.00","Subscriptions","130215187","09/05/2018","Enterprise","Black Country Consortium","R4701"
"Wolverhampton City Council","http://opendatacommunities.org/id/metropolitan-district-council/wolverhampton","701983","Blakenhall Neighbourhood Nursery","4603","92.00","TPP - Child Care provided for client","130214958","04/05/2018","Adult Education","Discretionary Fund","R5034"
"Wolverhampton City Council","http://opendatacommunities.org/id/metropolitan-district-council/wolverhampton","701983","Blakenhall Neighbourhood Nursery","4656","241.50","TPP - Child Care provided for client","130214959","04/05/2018","Adult Education","Discretionary Fund","R5034"
"Wolverhampton City Council","http://opendatacommunities.org/id/metropolitan-district-council/wolverhampton","701983","Blakenhall Neighbourhood Nursery","4434","455.00","TPP - Child Care provided for client","130214957","04/05/2018","Adult Education","Discretionary Fund","R5034"
"Wolverhampton City Council","http://opendatacommunities.org/id/metropolitan-district-council/wolverhampton","701996","Blue Group Interntl Limited T/A Bluecare","HSOC5690891","1,369.00","Agency Staff","130217220","30/05/2018","Child Protection","MASH","R1100"
"Wolverhampton City Council","http://opendatacommunities.org/id/metropolitan-district-council/wolverhampton","701996","Blue Group Interntl Limited T/A Bluecare","HSOC5673328","6.75","Agency Staff","130217214","30/05/2018","Child Protection","CIN/CP Social Work Unit - Area 7","R1100"
"Wolverhampton City Council","http://opendatacommunities.org/id/metropolitan-district-council/wolverhampton","701996","Blue Group Interntl Limited T/A Bluecare","HSOC5685510","6.30","Agency Staff","130217048","25/05/2018","Child Protection","MASH","R1100"
"Wolverhampton City Council","http://opendatacommunities.org/id/metropolitan-district-council/wolverhampton","701996","Blue Group Interntl Limited T/A Bluecare","HSOC5690696","20.55","Agency Staff","130217219","30/05/2018","Child Protection","MASH","R1100"
"Wolverhampton City Council","http://opendatacommunities.org/id/metropolitan-district-council/wolverhampton","701996","Blue Group Interntl Limited T/A Bluecare","HSOC5691797","1,369.00","Agency Staff","130217221","30/05/2018","Child Protection","MASH","R1100"
"Wolverhampton City Council","http://opendatacommunities.org/id/metropolitan-district-council/wolverhampton","701996","Blue Group Interntl Limited T/A Bluecare","HSOC5673331","629.00","Agency Staff","130217215","30/05/2018","Child Protection","CIN/CP Social Work Unit - Area 7","R1100"
"Wolverhampton City Council","http://opendatacommunities.org/id/metropolitan-district-council/wolverhampton","701996","Blue Group Interntl Limited T/A Bluecare","HSOC5684967","1,258.00","Agency Staff","130217333","30/05/2018","Child Protection","CIN/CP Social Work Unit - Area 7","R1100"
"Wolverhampton City Council","http://opendatacommunities.org/id/metropolitan-district-council/wolverhampton","701996","Blue Group Interntl Limited T/A Bluecare","HSOC5683316","1,369.00","Agency Staff","130217216","25/05/2018","Child Protection","MASH","R1100"
"Wolverhampton City Council","http://opendatacommunities.org/id/metropolitan-district-council/wolverhampton","701996","Blue Group Interntl Limited T/A Bluecare","HSOC5684966","1,258.00","Agency Staff","130217218","30/05/2018","Child Protection","CIN/CP Social Work Unit - Area 7","R1100"
"Wolverhampton City Council","http://opendatacommunities.org/id/metropolitan-district-council/wolverhampton","701996","Blue Group Interntl Limited T/A Bluecare","HSOC5691798","27.90","Agency Staff","130217222","30/05/2018","Child Protection","MASH","R1100"
"Wolverhampton City Council","http://opendatacommunities.org/id/metropolitan-district-council/wolverhampton","701996","Blue Group Interntl Limited T/A Bluecare","HSOC5683317","31.50","Agency Staff","130217217","25/05/2018","Child Protection","MASH","R1100"
"Wolverhampton City Council","http://opendatacommunities.org/id/metropolitan-district-council/wolverhampton","702015","Boc Limited","3046359531","89.35","Gas","130211753","04/05/2018","Visitor Economy","The Little Civic","R2101"
"Wolverhampton City Council","http://opendatacommunities.org/id/metropolitan-district-council/wolverhampton","702020","Boningale Nurseries","368063","549.08","Materials","130214109","02/05/2018","Environmental Maintenance","Direct Schools","R4007"
"Wolverhampton City Council","http://opendatacommunities.org/id/metropolitan-district-council/wolverhampton","702041","Boulton Travel Limited","BTHS29","250.00","Client Transport","130212623","02/05/2018","Headstart","B-Safe","R3042"
"Wolverhampton City Council","http://opendatacommunities.org/id/metropolitan-district-council/wolverhampton","702041","Boulton Travel Limited","BTWCBM4.29A","1,800.00","Client Transport","130214111","02/05/2018","Special Educational Needs","Special - Transport","R3042"
"Wolverhampton City Council","http://opendatacommunities.org/id/metropolitan-district-council/wolverhampton","702041","Boulton Travel Limited","BTWCGPT3.5","935.00","Client Transport","130215351","30/05/2018","Special Educational Needs","Special - Transport","R3042"
"Wolverhampton City Council","http://opendatacommunities.org/id/metropolitan-district-council/wolverhampton","702041","Boulton Travel Limited","BTWCBM3.30","990.00","Client Transport","130215683","30/05/2018","Special Educational Needs","Special - Transport","R3042"
"Wolverhampton City Council","http://opendatacommunities.org/id/metropolitan-district-council/wolverhampton","702041","Boulton Travel Limited","BTWCGPT3.4A","1,700.00","Client Transport","130213944","02/05/2018","Special Educational Needs","Special - Transport","R3042"
"Wolverhampton City Council","http://opendatacommunities.org/id/metropolitan-district-council/wolverhampton","702041","Boulton Travel Limited","BTWCTW12.7A","2,600.00","Client Transport","130213945","02/05/2018","Special Educational Needs","Special - Transport","R3042"
"Wolverhampton City Council","http://opendatacommunities.org/id/metropolitan-district-council/wolverhampton","702041","Boulton Travel Limited","BTWCBM4.30","990.00","Client Transport","130215684","30/05/2018","Special Educational Needs","Special - Transport","R3042"
"Wolverhampton City Council","http://opendatacommunities.org/id/metropolitan-district-council/wolverhampton","702041","Boulton Travel Limited","BTWCTW12.8","1,430.00","Client Transport","130215352","30/05/2018","Special Educational Needs","Special - Transport","R3042"
"Wolverhampton City Council","http://opendatacommunities.org/id/metropolitan-district-council/wolverhampton","702041","Boulton Travel Limited","BTHS31","175.00","Client Transport","130215188","30/05/2018","Headstart","B-Safe","R3042"
"Wolverhampton City Council","http://opendatacommunities.org/id/metropolitan-district-council/wolverhampton","702041","Boulton Travel Limited","BTWCTW13.4","1,045.00","Client Transport","130215353","30/05/2018","Special Educational Needs","Special - Transport","R3042"
"Wolverhampton City Council","http://opendatacommunities.org/id/metropolitan-district-council/wolverhampton","702041","Boulton Travel Limited","BTWCBM1.29A","1,990.00","Client Transport","130213942","02/05/2018","Special Educational Needs","Special - Transport","R3042"
"Wolverhampton City Council","http://opendatacommunities.org/id/metropolitan-district-council/wolverhampton","702041","Boulton Travel Limited","BTWCBM5.29A","1,800.00","Client Transport","130213943","02/05/2018","Special Educational Needs","Special - Transport","R3042"
"Wolverhampton City Council","http://opendatacommunities.org/id/metropolitan-district-council/wolverhampton","702041","Boulton Travel Limited","BTWCBM5.30","990.00","Client Transport","130215350","30/05/2018","Special Educational Needs","Special - Transport","R3042"
"Wolverhampton City Council","http://opendatacommunities.org/id/metropolitan-district-council/wolverhampton","702041","Boulton Travel Limited","BTWCBM1.30","1,045.00","Client Transport","130215682","30/05/2018","Special Educational Needs","Special - Transport","R3042"
"Wolverhampton City Council","http://opendatacommunities.org/id/metropolitan-district-council/wolverhampton","702041","Boulton Travel Limited","BTWCTW13.3A","1,900.00","Client Transport","130213946","02/05/2018","Special Educational Needs","Special - Transport","R3042"
"Wolverhampton City Council","http://opendatacommunities.org/id/metropolitan-district-council/wolverhampton","702041","Boulton Travel Limited","BTWCBM3.29A","1,800.00","Client Transport","130214110","02/05/2018","Special Educational Needs","Special - Transport","R3042"
"Wolverhampton City Council","http://opendatacommunities.org/id/metropolitan-district-council/wolverhampton","702071","Brakes/Brakefresh","9269241011","228.36","Provisions (Resale)","130213509","04/05/2018","Catering","Civic Centre Catering","R4102"
"Wolverhampton City Council","http://opendatacommunities.org/id/metropolitan-district-council/wolverhampton","702071","Brakes/Brakefresh","9269256120","257.47","Provisions (Resale)","130215355","16/05/2018","Catering","Civic Centre Catering","R4102"
"Wolverhampton City Council","http://opendatacommunities.org/id/metropolitan-district-council/wolverhampton","702071","Brakes/Brakefresh","81791279","15.27","Provisions (Resale)","130216833","25/05/2018","Catering","Civic Centre Catering","R4102"
"Wolverhampton City Council","http://opendatacommunities.org/id/metropolitan-district-council/wolverhampton","702071","Brakes/Brakefresh","9269263892","279.09","Provisions (Resale)","130215924","18/05/2018","Catering","Civic Centre Catering","R4102"
"Wolverhampton City Council","http://opendatacommunities.org/id/metropolitan-district-council/wolverhampton","702071","Brakes/Brakefresh","9269285369","188.64","Provisions (Resale)","130216834","30/05/2018","Catering","Civic Centre Catering","R4102"
"Wolverhampton City Council","http://opendatacommunities.org/id/metropolitan-district-council/wolverhampton","702071","Brakes/Brakefresh","74565395","27.00","Provisions (Resale)","130216831","25/05/2018","Catering","Civic Centre Catering","R4102"
"Wolverhampton City Council","http://opendatacommunities.org/id/metropolitan-district-council/wolverhampton","702071","Brakes/Brakefresh","9269244695","484.36","Provisions (Resale)","130213511","09/05/2018","Catering","Civic Centre Catering","R4102"
"Wolverhampton City Council","http://opendatacommunities.org/id/metropolitan-district-council/wolverhampton","702071","Brakes/Brakefresh","9269241012","435.18","Provisions (Resale)","130213510","11/05/2018","Catering","Civic Centre Catering","R4102"
"Wolverhampton City Council","http://opendatacommunities.org/id/metropolitan-district-council/wolverhampton","702071","Brakes/Brakefresh","74575896","101.83","Provisions (Resale)","130216832","25/05/2018","Catering","Civic Centre Catering","R4102"
"Wolverhampton City Council","http://opendatacommunities.org/id/metropolitan-district-council/wolverhampton","702071","Brakes/Brakefresh","81747830","92.56","Provisions (Resale)","130217051","25/05/2018","Catering","Civic Centre Catering","R4102"
"Wolverhampton City Council","http://opendatacommunities.org/id/metropolitan-district-council/wolverhampton","702071","Brakes/Brakefresh","9269268676","218.74","Provisions (Resale)","130215925","23/05/2018","Catering","Civic Centre Catering","R4102"
"Wolverhampton City Council","http://opendatacommunities.org/id/metropolitan-district-council/wolverhampton","702071","Brakes/Brakefresh","7269003828","-44.76","Provisions (Resale)","130214922","16/05/2018","Catering","Civic Centre Catering","R4102"
"Wolverhampton City Council","http://opendatacommunities.org/id/metropolitan-district-council/wolverhampton","702071","Brakes/Brakefresh","9269248459","350.82","Provisions (Resale)","130215354","11/05/2018","Catering","Civic Centre Catering","R4102"
"Wolverhampton City Council","http://opendatacommunities.org/id/metropolitan-district-council/wolverhampton","702071","Brakes/Brakefresh","9269276330","215.42","Provisions (Resale)","130215926","25/05/2018","Catering","Civic Centre Catering","R4102"
"Wolverhampton City Council","http://opendatacommunities.org/id/metropolitan-district-council/wolverhampton","702072","Brand Creative Media Limited","1157","800.00","Marketing \ Non-staff advertising","130214112","16/05/2018","Standards and Vulnerable Pupils","SENDIASS","R4317"
"Wolverhampton City Council","http://opendatacommunities.org/id/metropolitan-district-council/wolverhampton","702072","Brand Creative Media Limited","1160","200.00","Marketing \ Non-staff advertising","130214390","23/05/2018","Standards and Vulnerable Pupils","SENDIASS","R4317"
"Wolverhampton City Council","http://opendatacommunities.org/id/metropolitan-district-council/wolverhampton","702093","Briggs Equiptment UK Limited","107178954","413.33","Hire of Vehicles","130214113","16/05/2018","Markets","Wholesale Market Facilities Management","R3200"
"Wolverhampton City Council","http://opendatacommunities.org/id/metropolitan-district-council/wolverhampton","702104","Bristow & Sutor","192726","39.86","Bailiff Action","130214915","18/05/2018","Parking Services","Parking Enforcement","R9382"
"Wolverhampton City Council","http://opendatacommunities.org/id/metropolitan-district-council/wolverhampton","702104","Bristow & Sutor","188723","310.00","Services - Professional Fees","130216307","18/05/2018","Revenues & Benefits","Revenues","R4400"
"Wolverhampton City Council","http://opendatacommunities.org/id/metropolitan-district-council/wolverhampton","702126","BT (Phone Bills)","CM68571245 M0184P","34.80","Fixtures and Fittings - R&M","190462048","23/05/2018","Facilities Management","i10 Facilities Management","R2502"
"Wolverhampton City Council","http://opendatacommunities.org/id/metropolitan-district-council/wolverhampton","702126","BT (Phone Bills)","VP85396270 Q04401","208.20","Comms - Telephone Rental","190459912","23/05/2018","Parking Services","Parking Enforcement","R4504"
"Wolverhampton City Council","http://opendatacommunities.org/id/metropolitan-district-council/wolverhampton","702126","BT (Phone Bills)","CM69241767 Q0051M","73.80","Fixtures and Fittings - R&M","190459914","23/05/2018","Facilities Management","Management of Vacant Properties","R2502"
"Wolverhampton City Council","http://opendatacommunities.org/id/metropolitan-district-council/wolverhampton","702126","BT (Phone Bills)","VP 03799470 Q034","3,297.87","Computing - Internet","190453045","02/05/2018","ICTS","Strategic ICTS (ICT Service Budget)","R4537"
"Wolverhampton City Council","http://opendatacommunities.org/id/metropolitan-district-council/wolverhampton","702126","BT (Phone Bills)","CM59262967 Q119VO(1)","40.00","Fixtures and Fittings - R&M","190457821","16/05/2018","Facilities Management","Caretakers Community Centre","R2502"
"Wolverhampton City Council","http://opendatacommunities.org/id/metropolitan-district-council/wolverhampton","702126","BT (Phone Bills)","CM59262967 Q119VO","91.80","Fixtures and Fittings - R&M","190457820","16/05/2018","Facilities Management","Caretakers Community Centre","R2502"
"Wolverhampton City Council","http://opendatacommunities.org/id/metropolitan-district-council/wolverhampton","702126","BT (Phone Bills)","CM 5906 1003 Q107 RV","81.19","Comms - Telephone Call charges","130117202","30/05/2018","Environmental Maintenance","Pendeford Nature Reserve","R4505"
"Wolverhampton City Council","http://opendatacommunities.org/id/metropolitan-district-council/wolverhampton","702126","BT (Phone Bills)","Q 059 20","125.78","Comms - Telephone Rental","190462621","25/05/2018","Bereavement Services","Crematorium","R4504"
"Wolverhampton City Council","http://opendatacommunities.org/id/metropolitan-district-council/wolverhampton","702126","BT (Phone Bills)","CM59371934 Q119VB(1)","40.00","Fixtures and Fittings - R&M","190457564","16/05/2018","Facilities Management","Management of Vacant Properties","R2502"
"Wolverhampton City Council","http://opendatacommunities.org/id/metropolitan-district-council/wolverhampton","702126","BT (Phone Bills)","Q092 W&","73.80","Comms - Telephone Rental","190462622","25/05/2018","Bereavement Services","Crematorium","R4504"
"Wolverhampton City Council","http://opendatacommunities.org/id/metropolitan-district-council/wolverhampton","702126","BT (Phone Bills)","CM68571245 F019XX(1)","93.44","Fixtures and Fittings - R&M","190462051","23/05/2018","Facilities Management","i10 Facilities Management","R2502"
"Wolverhampton City Council","http://opendatacommunities.org/id/metropolitan-district-council/wolverhampton","702126","BT (Phone Bills)","CM68571245 F019XX","11.15","Fixtures and Fittings - R&M","190462050","23/05/2018","Facilities Management","i10 Facilities Management","R2502"
"Wolverhampton City Council","http://opendatacommunities.org/id/metropolitan-district-council/wolverhampton","702126","BT (Phone Bills)","CM60242624 Q100QA","91.96","Fixtures and Fittings - R&M","190459913","23/05/2018","Maintenance Programme","Centralised R&M","R2502"
"Wolverhampton City Council","http://opendatacommunities.org/id/metropolitan-district-council/wolverhampton","702126","BT (Phone Bills)","CM68571245 M0184P(1)","40.00","Fixtures and Fittings - R&M","190462049","23/05/2018","Facilities Management","i10 Facilities Management","R2502"
"Wolverhampton City Council","http://opendatacommunities.org/id/metropolitan-district-council/wolverhampton","702126","BT (Phone Bills)","CM68571245 M0170H","34.80","Fixtures and Fittings - R&M","190462047","23/05/2018","Facilities Management","i10 Facilities Management","R2502"
"Wolverhampton City Council","http://opendatacommunities.org/id/metropolitan-district-council/wolverhampton","702126","BT (Phone Bills)","CM59371934 Q119VB","159.96","Fixtures and Fittings - R&M","190457563","16/05/2018","Facilities Management","Management of Vacant Properties","R2502"
"Wolverhampton City Council","http://opendatacommunities.org/id/metropolitan-district-council/wolverhampton","702126","BT (Phone Bills)","CM59374189 Q116KS","96.48","Fixtures and Fittings - R&M","190462556","25/05/2018","Facilities Management","Management of Vacant Properties","R2502"
"Wolverhampton City Council","http://opendatacommunities.org/id/metropolitan-district-council/wolverhampton","702126","BT (Phone Bills)","CM59374189 Q116KS(1)","40.00","Fixtures and Fittings - R&M","190462557","25/05/2018","Facilities Management","Management of Vacant Properties","R2502"
"Wolverhampton City Council","http://opendatacommunities.org/id/metropolitan-district-council/wolverhampton","702126","BT (Phone Bills)","WM 3727 9286 - Q040 JH","138.40","Comms - Telephone Call charges","190457793","16/05/2018","Parking Services","Car Parks Operational Staff","R4505"
"Wolverhampton City Council","http://opendatacommunities.org/id/metropolitan-district-council/wolverhampton","702126","BT (Phone Bills)","CM68571245 M016XS(1)","40.00","Fixtures and Fittings - R&M","190462046","23/05/2018","Facilities Management","i10 Facilities Management","R2502"
"Wolverhampton City Council","http://opendatacommunities.org/id/metropolitan-district-council/wolverhampton","702126","BT (Phone Bills)","CM68571245 M016XS","34.80","Fixtures and Fittings - R&M","190462045","23/05/2018","Facilities Management","i10 Facilities Management","R2502"
"Wolverhampton City Council","http://opendatacommunities.org/id/metropolitan-district-council/wolverhampton","702131","British Telecommunications-Openreach","A170423","659.12","Construction and Conversion","130214599","18/05/2018","-","Bilston Urban Village","C1100"
"Wolverhampton City Council","http://opendatacommunities.org/id/metropolitan-district-council/wolverhampton","702157","Browne Jacobson Llp","384540","440.00","Services - Professional Fees","130214248","16/05/2018","Human Resources","Equal Pay","R4400"
"Wolverhampton City Council","http://opendatacommunities.org/id/metropolitan-district-council/wolverhampton","702157","Browne Jacobson Llp","387927","348.00","Services - Professional Fees","130215502","30/05/2018","Human Resources","Equal Pay","R4400"
"Wolverhampton City Council","http://opendatacommunities.org/id/metropolitan-district-council/wolverhampton","702157","Browne Jacobson Llp","TP100142/LG 387287","1,585.00","Insurance - General","190457818","16/05/2018","Audit Services","Legal Liability","R4962"
"Wolverhampton City Council","http://opendatacommunities.org/id/metropolitan-district-council/wolverhampton","702157","Browne Jacobson Llp","TP160145/LG 3869434","495.00","Insurance - General","190459269","18/05/2018","Audit Services","Legal Liability","R4962"
"Wolverhampton City Council","http://opendatacommunities.org/id/metropolitan-district-council/wolverhampton","702157","Browne Jacobson Llp","MS9601/LG 387195","4,271.25","Insurance - General","190457816","16/05/2018","Audit Services","Legal Liability","R4962"
"Wolverhampton City Council","http://opendatacommunities.org/id/metropolitan-district-council/wolverhampton","702157","Browne Jacobson Llp","TP120183/LG 386126","210.00","Insurance - General","190457819","16/05/2018","Audit Services","Legal Liability","R4962"
"Wolverhampton City Council","http://opendatacommunities.org/id/metropolitan-district-council/wolverhampton","702157","Browne Jacobson Llp","378303","856.50","Insurance - General","130212898","16/05/2018","Audit Services","Legal Liability","R4962"
"Wolverhampton City Council","http://opendatacommunities.org/id/metropolitan-district-council/wolverhampton","702157","Browne Jacobson Llp","TP9978/LG 387262","2,931.50","Insurance - General","190457817","16/05/2018","Audit Services","Legal Liability","R4962"
"Wolverhampton City Council","http://opendatacommunities.org/id/metropolitan-district-council/wolverhampton","702157","Browne Jacobson Llp","TP140182/LG 386606","692.50","Insurance - General","190459270","18/05/2018","Audit Services","Legal Liability","R4962"
"Wolverhampton City Council","http://opendatacommunities.org/id/metropolitan-district-council/wolverhampton","702161","Bruel & Kjaer UK Limited","3061341","2,135.70","Services - Professional Fees","130215356","09/05/2018","Public Protection","Air Quality and Noise","R4400"
"Wolverhampton City Council","http://opendatacommunities.org/id/metropolitan-district-council/wolverhampton","702164","Bruton Knowles","BHM-18-22131","950.00","Services - Professional Fees","130215503","11/05/2018","Housing Revenue Account","HRA General","R4400"
"Wolverhampton City Council","http://opendatacommunities.org/id/metropolitan-district-council/wolverhampton","702164","Bruton Knowles","BHM-18-21084","8,440.00","Services - Professional Fees","130214600","11/05/2018","Corporate Asset Management","NNDR","R4400"
"Wolverhampton City Council","http://opendatacommunities.org/id/metropolitan-district-council/wolverhampton","702171","BT (Business)","IN04073791","2,227.50","Intangible Assets / Computer Software","130212218","02/05/2018","-","ICT Desktop Refresh","C4005"
"Wolverhampton City Council","http://opendatacommunities.org/id/metropolitan-district-council/wolverhampton","702172","BT Global","0790244143 March 2018","103.36","Comms - Telephone Rental","190455732","11/05/2018","Management and Administration","Public Health Support Costs","R4504"
"Wolverhampton City Council","http://opendatacommunities.org/id/metropolitan-district-council/wolverhampton","702172","BT Global","0790246641","1,342.22","Computing - Internet","190460332","23/05/2018","ICTS","Strategic ICTS (ICT Service Budget)","R4537"
"Wolverhampton City Council","http://opendatacommunities.org/id/metropolitan-district-council/wolverhampton","702181","United Living","CSIN000473","808,494.00","Construction and Conversion","130216419","23/05/2018","-","Decent Homes - Stock Improvements","C1100"
"Wolverhampton City Council","http://opendatacommunities.org/id/metropolitan-district-council/wolverhampton","702181","United Living","CSIN000479","195,212.00","Construction and Conversion","130216425","23/05/2018","-","Refurbishment of Voids","C1100"
"Wolverhampton City Council","http://opendatacommunities.org/id/metropolitan-district-council/wolverhampton","702181","United Living","CSIN000480","70,715.00","R&M - Departmental planned (external)","130216426","23/05/2018","Housing Revenue Account","Amounts to be Settled with Wolverhampton Homes","R2001"
"Wolverhampton City Council","http://opendatacommunities.org/id/metropolitan-district-council/wolverhampton","702181","United Living","CSIN000489","65,000.00","Construction and Conversion","130216427","23/05/2018","-","Decent Homes - Stock Improvements","C1100"
"Wolverhampton City Council","http://opendatacommunities.org/id/metropolitan-district-council/wolverhampton","702181","United Living","CSIN000478","50,000.00","Construction and Conversion","130216424","23/05/2018","-","Structural works","C1100"
"Wolverhampton City Council","http://opendatacommunities.org/id/metropolitan-district-council/wolverhampton","702231","Bytes Software Services Limited","510429","6,074.33","Computing - Licences","130213130","09/05/2018","ICTS","Strategic ICTS","R4535"
"Wolverhampton City Council","http://opendatacommunities.org/id/metropolitan-district-council/wolverhampton","702231","Bytes Software Services Limited","512073","22.36","Plant, Equipment, Machinery & Computer Hardware","130214720","23/05/2018","-","ICT General Programme","C3000"
"Wolverhampton City Council","http://opendatacommunities.org/id/metropolitan-district-council/wolverhampton","702231","Bytes Software Services Limited","512192","582.36","Plant, Equipment, Machinery & Computer Hardware","130214975","25/05/2018","-","ICT General Programme","C3000"
"Wolverhampton City Council","http://opendatacommunities.org/id/metropolitan-district-council/wolverhampton","702249","C M Community Care Services Limited","DRYA09220180511","177.87","TPP - Home Care","190457459","16/05/2018","Older People Care Purchasing","OP Care Purchasing (Spot Placements)","R5420"
"Wolverhampton City Council","http://opendatacommunities.org/id/metropolitan-district-council/wolverhampton","702249","C M Community Care Services Limited","DRYA09220180511","177.87","TPP - Home Care","190457459","16/05/2018","Older People Care Purchasing","OP Care Purchasing (Spot Placements)","R5420"
"Wolverhampton City Council","http://opendatacommunities.org/id/metropolitan-district-council/wolverhampton","702249","C M Community Care Services Limited","EMAT01020180511","21.78","TPP - Home Care","190457460","16/05/2018","Older People Care Purchasing","OP Care Purchasing (Spot Placements)","R5420"
"Wolverhampton City Council","http://opendatacommunities.org/id/metropolitan-district-council/wolverhampton","702249","C M Community Care Services Limited","JREI02620180511","203.28","TPP - Home Care","190457464","16/05/2018","Older People Care Purchasing","OP Care Purchasing (Spot Placements)","R5420"
"Wolverhampton City Council","http://opendatacommunities.org/id/metropolitan-district-council/wolverhampton","702249","C M Community Care Services Limited","JREI02620180511","203.28","TPP - Home Care","190457464","16/05/2018","Older People Care Purchasing","OP Care Purchasing (Spot Placements)","R5420"
"Wolverhampton City Council","http://opendatacommunities.org/id/metropolitan-district-council/wolverhampton","702249","C M Community Care Services Limited","NDON00620180511","203.28","TPP - Home Care","190457469","16/05/2018","Older People Care Purchasing","OP Care Purchasing (Spot Placements)","R5420"
"Wolverhampton City Council","http://opendatacommunities.org/id/metropolitan-district-council/wolverhampton","702249","C M Community Care Services Limited","NDON00620180511","203.28","TPP - Home Care","190457469","16/05/2018","Older People Care Purchasing","OP Care Purchasing (Spot Placements)","R5420"
"Wolverhampton City Council","http://opendatacommunities.org/id/metropolitan-district-council/wolverhampton","702249","C M Community Care Services Limited","JBEN00320180509","101.64","TPP - Home Care","190455692","11/05/2018","Older People Care Purchasing","OP Care Purchasing (Spot Placements)","R5420"
"Wolverhampton City Council","http://opendatacommunities.org/id/metropolitan-district-council/wolverhampton","702249","C M Community Care Services Limited","JREI02520180509","203.28","TPP - Home Care","190455693","11/05/2018","Older People Care Purchasing","OP Care Purchasing (Spot Placements)","R5420"
"Wolverhampton City Council","http://opendatacommunities.org/id/metropolitan-district-council/wolverhampton","702249","C M Community Care Services Limited","JREI02520180509","203.28","TPP - Home Care","190455693","11/05/2018","Older People Care Purchasing","OP Care Purchasing (Spot Placements)","R5420"
"Wolverhampton City Council","http://opendatacommunities.org/id/metropolitan-district-council/wolverhampton","702249","C M Community Care Services Limited","MMAS00220180509","148.83","TPP - Home Care","190455698","11/05/2018","Older People Care Purchasing","OP Care Purchasing (Spot Placements)","R5420"
"Wolverhampton City Council","http://opendatacommunities.org/id/metropolitan-district-council/wolverhampton","702249","C M Community Care Services Limited","MMAS00220180509","228.69","TPP - Home Care","190455698","11/05/2018","Older People Care Purchasing","OP Care Purchasing (Spot Placements)","R5420"
"Wolverhampton City Council","http://opendatacommunities.org/id/metropolitan-district-council/wolverhampton","702249","C M Community Care Services Limited","NDON00720180518","203.28","TPP - Home Care","190459865","23/05/2018","Older People Care Purchasing","OP Care Purchasing (Spot Placements)","R5420"
"Wolverhampton City Council","http://opendatacommunities.org/id/metropolitan-district-council/wolverhampton","702249","C M Community Care Services Limited","MHAR01720180518","50.82","TPP - Home Care","190459863","23/05/2018","Older People Care Purchasing","OP Care Purchasing (Spot Placements)","R5420"
"Wolverhampton City Council","http://opendatacommunities.org/id/metropolitan-district-council/wolverhampton","702249","C M Community Care Services Limited","MHAR01720180518","50.82","TPP - Home Care","190459863","23/05/2018","Older People Care Purchasing","OP Care Purchasing (Spot Placements)","R5420"
"Wolverhampton City Council","http://opendatacommunities.org/id/metropolitan-district-council/wolverhampton","702249","C M Community Care Services Limited","NMIS01220180518","112.53","TPP - Home Care","190459866","23/05/2018","Learning Disabilities Care Purchasing","LD Care Purchasing (Spot Placements)","R5420"
"Wolverhampton City Council","http://opendatacommunities.org/id/metropolitan-district-council/wolverhampton","702249","C M Community Care Services Limited","RDOD10020180518","203.28","TPP - Home Care","190459868","23/05/2018","Older People Care Purchasing","OP Care Purchasing (Spot Placements)","R5420"
"Wolverhampton City Council","http://opendatacommunities.org/id/metropolitan-district-council/wolverhampton","702249","C M Community Care Services Limited","NDON00720180518","203.28","TPP - Home Care","190459865","23/05/2018","Older People Care Purchasing","OP Care Purchasing (Spot Placements)","R5420"
"Wolverhampton City Council","http://opendatacommunities.org/id/metropolitan-district-council/wolverhampton","702249","C M Community Care Services Limited","RDOD09820180509","203.28","TPP - Home Care","190455702","11/05/2018","Older People Care Purchasing","OP Care Purchasing (Spot Placements)","R5420"
"Wolverhampton City Council","http://opendatacommunities.org/id/metropolitan-district-council/wolverhampton","702249","C M Community Care Services Limited","DRYA09320180518","177.87","TPP - Home Care","190459857","23/05/2018","Older People Care Purchasing","OP Care Purchasing (Spot Placements)","R5420"
"Wolverhampton City Council","http://opendatacommunities.org/id/metropolitan-district-council/wolverhampton","702249","C M Community Care Services Limited","DRYA09320180518","177.87","TPP - Home Care","190459857","23/05/2018","Older People Care Purchasing","OP Care Purchasing (Spot Placements)","R5420"
"Wolverhampton City Council","http://opendatacommunities.org/id/metropolitan-district-council/wolverhampton","702249","C M Community Care Services Limited","EWEB03820180518","203.28","TPP - Home Care","190459858","23/05/2018","Older People Care Purchasing","OP Care Purchasing (Spot Placements)","R5420"
"Wolverhampton City Council","http://opendatacommunities.org/id/metropolitan-district-council/wolverhampton","702249","C M Community Care Services Limited","EWEB03820180518","203.28","TPP - Home Care","190459858","23/05/2018","Older People Care Purchasing","OP Care Purchasing (Spot Placements)","R5420"
"Wolverhampton City Council","http://opendatacommunities.org/id/metropolitan-district-council/wolverhampton","702249","C M Community Care Services Limited","PMOR02120180518","203.28","TPP - Home Care","190459867","23/05/2018","Older People Care Purchasing","OP Care Purchasing (Spot Placements)","R5420"
"Wolverhampton City Council","http://opendatacommunities.org/id/metropolitan-district-council/wolverhampton","702249","C M Community Care Services Limited","PMOR02120180518","203.28","TPP - Home Care","190459867","23/05/2018","Older People Care Purchasing","OP Care Purchasing (Spot Placements)","R5420"
"Wolverhampton City Council","http://opendatacommunities.org/id/metropolitan-district-council/wolverhampton","702249","C M Community Care Services Limited","TLAM01820180518","152.46","TPP - Home Care","190459869","23/05/2018","Older People Care Purchasing","OP Care Purchasing (Spot Placements)","R5420"
"Wolverhampton City Council","http://opendatacommunities.org/id/metropolitan-district-council/wolverhampton","702249","C M Community Care Services Limited","TLAM01820180518","152.46","TPP - Home Care","190459869","23/05/2018","Older People Care Purchasing","OP Care Purchasing (Spot Placements)","R5420"
"Wolverhampton City Council","http://opendatacommunities.org/id/metropolitan-district-council/wolverhampton","702249","C M Community Care Services Limited","LAGG04420180509","177.87","TPP - Home Care","190455694","11/05/2018","Older People Care Purchasing","OP Care Purchasing (Spot Placements)","R5420"
"Wolverhampton City Council","http://opendatacommunities.org/id/metropolitan-district-council/wolverhampton","702249","C M Community Care Services Limited","LAGG04420180509","177.87","TPP - Home Care","190455694","11/05/2018","Older People Care Purchasing","OP Care Purchasing (Spot Placements)","R5420"
"Wolverhampton City Council","http://opendatacommunities.org/id/metropolitan-district-council/wolverhampton","702249","C M Community Care Services Limited","NMIS01020180509","112.53","TPP - Home Care","190455700","11/05/2018","Learning Disabilities Care Purchasing","LD Care Purchasing (Spot Placements)","R5420"
"Wolverhampton City Council","http://opendatacommunities.org/id/metropolitan-district-council/wolverhampton","702249","C M Community Care Services Limited","MMAL02220180517","174.24","TPP - Home Care","190459513","18/05/2018","Physical Disabilities Care Purchasing","PD Care Purchasing (Spot Placements)","R5420"
"Wolverhampton City Council","http://opendatacommunities.org/id/metropolitan-district-council/wolverhampton","702249","C M Community Care Services Limited","MMAL02220180517","174.24","TPP - Home Care","190459513","18/05/2018","Physical Disabilities Care Purchasing","PD Care Purchasing (Spot Placements)","R5420"
"Wolverhampton City Council","http://opendatacommunities.org/id/metropolitan-district-council/wolverhampton","702249","C M Community Care Services Limited","BBOO00920180511","228.69","TPP - Home Care","190457458","16/05/2018","Older People Care Purchasing","OP Care Purchasing (Spot Placements)","R5420"
"Wolverhampton City Council","http://opendatacommunities.org/id/metropolitan-district-council/wolverhampton","702249","C M Community Care Services Limited","BBOO00920180511","228.69","TPP - Home Care","190457458","16/05/2018","Older People Care Purchasing","OP Care Purchasing (Spot Placements)","R5420"
"Wolverhampton City Council","http://opendatacommunities.org/id/metropolitan-district-council/wolverhampton","702249","C M Community Care Services Limited","LCON04520180511","72.60","TPP - Home Care","190457466","16/05/2018","Physical Disabilities Care Purchasing","PD Care Purchasing (Spot Placements)","R5420"
"Wolverhampton City Council","http://opendatacommunities.org/id/metropolitan-district-council/wolverhampton","702249","C M Community Care Services Limited","LCON04520180511","72.60","TPP - Home Care","190457466","16/05/2018","Physical Disabilities Care Purchasing","PD Care Purchasing (Spot Placements)","R5420"
"Wolverhampton City Council","http://opendatacommunities.org/id/metropolitan-district-council/wolverhampton","702249","C M Community Care Services Limited","LAGG04520180511","177.87","TPP - Home Care","190457465","16/05/2018","Older People Care Purchasing","OP Care Purchasing (Spot Placements)","R5420"
"Wolverhampton City Council","http://opendatacommunities.org/id/metropolitan-district-council/wolverhampton","702249","C M Community Care Services Limited","LAGG04520180511","177.87","TPP - Home Care","190457465","16/05/2018","Older People Care Purchasing","OP Care Purchasing (Spot Placements)","R5420"
"Wolverhampton City Council","http://opendatacommunities.org/id/metropolitan-district-council/wolverhampton","702249","C M Community Care Services Limited","PMOR02020180511","203.28","TPP - Home Care","190457471","16/05/2018","Older People Care Purchasing","OP Care Purchasing (Spot Placements)","R5420"
"Wolverhampton City Council","http://opendatacommunities.org/id/metropolitan-district-council/wolverhampton","702249","C M Community Care Services Limited","PMOR02020180511","203.28","TPP - Home Care","190457471","16/05/2018","Older People Care Purchasing","OP Care Purchasing (Spot Placements)","R5420"
"Wolverhampton City Council","http://opendatacommunities.org/id/metropolitan-district-council/wolverhampton","702249","C M Community Care Services Limited","MHAR01620180511","29.04","TPP - Home Care","190457468","16/05/2018","Older People Care Purchasing","OP Care Purchasing (Spot Placements)","R5420"
"Wolverhampton City Council","http://opendatacommunities.org/id/metropolitan-district-council/wolverhampton","702249","C M Community Care Services Limited","MHAR01620180511","29.04","TPP - Home Care","190457468","16/05/2018","Older People Care Purchasing","OP Care Purchasing (Spot Placements)","R5420"
"Wolverhampton City Council","http://opendatacommunities.org/id/metropolitan-district-council/wolverhampton","702249","C M Community Care Services Limited","MHAR01620180511","36.30","TPP - Home Care","190457468","16/05/2018","Older People Care Purchasing","OP Care Purchasing (Spot Placements)","R5420"
"Wolverhampton City Council","http://opendatacommunities.org/id/metropolitan-district-council/wolverhampton","702249","C M Community Care Services Limited","MHAR01620180511","36.30","TPP - Home Care","190457468","16/05/2018","Older People Care Purchasing","OP Care Purchasing (Spot Placements)","R5420"
"Wolverhampton City Council","http://opendatacommunities.org/id/metropolitan-district-council/wolverhampton","702249","C M Community Care Services Limited","DRYA09120180509","98.01","TPP - Home Care","190455688","11/05/2018","Older People Care Purchasing","OP Care Purchasing (Spot Placements)","R5420"
"Wolverhampton City Council","http://opendatacommunities.org/id/metropolitan-district-council/wolverhampton","702249","C M Community Care Services Limited","DRYA09120180509","177.87","TPP - Home Care","190455688","11/05/2018","Older People Care Purchasing","OP Care Purchasing (Spot Placements)","R5420"
"Wolverhampton City Council","http://opendatacommunities.org/id/metropolitan-district-council/wolverhampton","702249","C M Community Care Services Limited","BBOO00820180509","228.69","TPP - Home Care","190455687","11/05/2018","Older People Care Purchasing","OP Care Purchasing (Spot Placements)","R5420"
"Wolverhampton City Council","http://opendatacommunities.org/id/metropolitan-district-council/wolverhampton","702249","C M Community Care Services Limited","BBOO00820180509","228.69","TPP - Home Care","190455687","11/05/2018","Older People Care Purchasing","OP Care Purchasing (Spot Placements)","R5420"
"Wolverhampton City Council","http://opendatacommunities.org/id/metropolitan-district-council/wolverhampton","702249","C M Community Care Services Limited","MBEN01920180509","203.28","TPP - Home Care","190455696","11/05/2018","Older People Care Purchasing","OP Care Purchasing (Spot Placements)","R5420"
"Wolverhampton City Council","http://opendatacommunities.org/id/metropolitan-district-council/wolverhampton","702249","C M Community Care Services Limited","MBEN01920180509","203.28","TPP - Home Care","190455696","11/05/2018","Older People Care Purchasing","OP Care Purchasing (Spot Placements)","R5420"
"Wolverhampton City Council","http://opendatacommunities.org/id/metropolitan-district-council/wolverhampton","702249","C M Community Care Services Limited","BBOO01020180518","228.69","TPP - Home Care","190459856","23/05/2018","Older People Care Purchasing","OP Care Purchasing (Spot Placements)","R5420"
"Wolverhampton City Council","http://opendatacommunities.org/id/metropolitan-district-council/wolverhampton","702249","C M Community Care Services Limited","BBOO01020180518","228.69","TPP - Home Care","190459856","23/05/2018","Older People Care Purchasing","OP Care Purchasing (Spot Placements)","R5420"
"Wolverhampton City Council","http://opendatacommunities.org/id/metropolitan-district-council/wolverhampton","702249","C M Community Care Services Limited","LAGG04620180518","177.87","TPP - Home Care","190459861","23/05/2018","Older People Care Purchasing","OP Care Purchasing (Spot Placements)","R5420"
"Wolverhampton City Council","http://opendatacommunities.org/id/metropolitan-district-council/wolverhampton","702249","C M Community Care Services Limited","LAGG04620180518","177.87","TPP - Home Care","190459861","23/05/2018","Older People Care Purchasing","OP Care Purchasing (Spot Placements)","R5420"
"Wolverhampton City Council","http://opendatacommunities.org/id/metropolitan-district-council/wolverhampton","702249","C M Community Care Services Limited","JREI02720180518","203.28","TPP - Home Care","190459860","23/05/2018","Older People Care Purchasing","OP Care Purchasing (Spot Placements)","R5420"
"Wolverhampton City Council","http://opendatacommunities.org/id/metropolitan-district-council/wolverhampton","702249","C M Community Care Services Limited","JREI02720180518","203.28","TPP - Home Care","190459860","23/05/2018","Older People Care Purchasing","OP Care Purchasing (Spot Placements)","R5420"
"Wolverhampton City Council","http://opendatacommunities.org/id/metropolitan-district-council/wolverhampton","702249","C M Community Care Services Limited","LAGG032B20180521","172.97","TPP - Home Care","190461379","23/05/2018","Older People Care Purchasing","OP Care Purchasing (Spot Placements)","R5420"
"Wolverhampton City Council","http://opendatacommunities.org/id/metropolitan-district-council/wolverhampton","702249","C M Community Care Services Limited","LAGG032B20180521","172.97","TPP - Home Care","190461379","23/05/2018","Older People Care Purchasing","OP Care Purchasing (Spot Placements)","R5420"
"Wolverhampton City Council","http://opendatacommunities.org/id/metropolitan-district-council/wolverhampton","702249","C M Community Care Services Limited","MMAL02320180517","174.24","TPP - Home Care","190459514","18/05/2018","Physical Disabilities Care Purchasing","PD Care Purchasing (Spot Placements)","R5420"
"Wolverhampton City Council","http://opendatacommunities.org/id/metropolitan-district-council/wolverhampton","702249","C M Community Care Services Limited","MMAL02320180517","174.24","TPP - Home Care","190459514","18/05/2018","Physical Disabilities Care Purchasing","PD Care Purchasing (Spot Placements)","R5420"
"Wolverhampton City Council","http://opendatacommunities.org/id/metropolitan-district-council/wolverhampton","702249","C M Community Care Services Limited","LCON04420180509","254.10","TPP - Home Care","190455695","11/05/2018","Physical Disabilities Care Purchasing","PD Care Purchasing (Spot Placements)","R5420"
"Wolverhampton City Council","http://opendatacommunities.org/id/metropolitan-district-council/wolverhampton","702249","C M Community Care Services Limited","LCON04420180509","254.10","TPP - Home Care","190455695","11/05/2018","Physical Disabilities Care Purchasing","PD Care Purchasing (Spot Placements)","R5420"
"Wolverhampton City Council","http://opendatacommunities.org/id/metropolitan-district-council/wolverhampton","702249","C M Community Care Services Limited","TLAM016A20180509","152.46","TPP - Home Care","190455703","11/05/2018","Older People Care Purchasing","OP Care Purchasing (Spot Placements)","R5420"
"Wolverhampton City Council","http://opendatacommunities.org/id/metropolitan-district-council/wolverhampton","702249","C M Community Care Services Limited","TLAM016A20180509","152.46","TPP - Home Care","190455703","11/05/2018","Older People Care Purchasing","OP Care Purchasing (Spot Placements)","R5420"
"Wolverhampton City Council","http://opendatacommunities.org/id/metropolitan-district-council/wolverhampton","702249","C M Community Care Services Limited","ABAT03220180509","203.28","TPP - Home Care","190455686","11/05/2018","Older People Care Purchasing","OP Care Purchasing (Spot Placements)","R5420"
"Wolverhampton City Council","http://opendatacommunities.org/id/metropolitan-district-council/wolverhampton","702249","C M Community Care Services Limited","ABAT03220180509","203.28","TPP - Home Care","190455686","11/05/2018","Older People Care Purchasing","OP Care Purchasing (Spot Placements)","R5420"
"Wolverhampton City Council","http://opendatacommunities.org/id/metropolitan-district-council/wolverhampton","702249","C M Community Care Services Limited","EMAT00920180509","76.23","TPP - Home Care","190455689","11/05/2018","Older People Care Purchasing","OP Care Purchasing (Spot Placements)","R5420"
"Wolverhampton City Council","http://opendatacommunities.org/id/metropolitan-district-council/wolverhampton","702249","C M Community Care Services Limited","EMAT00920180509","76.23","TPP - Home Care","190455689","11/05/2018","Older People Care Purchasing","OP Care Purchasing (Spot Placements)","R5420"
"Wolverhampton City Council","http://opendatacommunities.org/id/metropolitan-district-council/wolverhampton","702249","C M Community Care Services Limited","NDON00520180509","203.28","TPP - Home Care","190455699","11/05/2018","Older People Care Purchasing","OP Care Purchasing (Spot Placements)","R5420"
"Wolverhampton City Council","http://opendatacommunities.org/id/metropolitan-district-council/wolverhampton","702249","C M Community Care Services Limited","NDON00520180509","203.28","TPP - Home Care","190455699","11/05/2018","Older People Care Purchasing","OP Care Purchasing (Spot Placements)","R5420"
"Wolverhampton City Council","http://opendatacommunities.org/id/metropolitan-district-council/wolverhampton","702249","C M Community Care Services Limited","ABAT03320180511","203.28","TPP - Home Care","190457457","16/05/2018","Older People Care Purchasing","OP Care Purchasing (Spot Placements)","R5420"
"Wolverhampton City Council","http://opendatacommunities.org/id/metropolitan-district-council/wolverhampton","702249","C M Community Care Services Limited","ABAT03320180511","203.28","TPP - Home Care","190457457","16/05/2018","Older People Care Purchasing","OP Care Purchasing (Spot Placements)","R5420"
"Wolverhampton City Council","http://opendatacommunities.org/id/metropolitan-district-council/wolverhampton","702249","C M Community Care Services Limited","JBEN00420180511","58.08","TPP - Home Care","190457463","16/05/2018","Older People Care Purchasing","OP Care Purchasing (Spot Placements)","R5420"
"Wolverhampton City Council","http://opendatacommunities.org/id/metropolitan-district-council/wolverhampton","702249","C M Community Care Services Limited","JBEN00420180511","130.68","TPP - Home Care","190457463","16/05/2018","Older People Care Purchasing","OP Care Purchasing (Spot Placements)","R5420"
"Wolverhampton City Council","http://opendatacommunities.org/id/metropolitan-district-council/wolverhampton","702249","C M Community Care Services Limited","NMIS01120180511","112.53","TPP - Home Care","190457470","16/05/2018","Learning Disabilities Care Purchasing","LD Care Purchasing (Spot Placements)","R5420"
"Wolverhampton City Council","http://opendatacommunities.org/id/metropolitan-district-council/wolverhampton","702249","C M Community Care Services Limited","RDOD09920180511","203.28","TPP - Home Care","190457472","16/05/2018","Older People Care Purchasing","OP Care Purchasing (Spot Placements)","R5420"
"Wolverhampton City Council","http://opendatacommunities.org/id/metropolitan-district-council/wolverhampton","702249","C M Community Care Services Limited","EWEB03620180509","203.28","TPP - Home Care","190455690","11/05/2018","Older People Care Purchasing","OP Care Purchasing (Spot Placements)","R5420"
"Wolverhampton City Council","http://opendatacommunities.org/id/metropolitan-district-council/wolverhampton","702249","C M Community Care Services Limited","EWEB03620180509","203.28","TPP - Home Care","190455690","11/05/2018","Older People Care Purchasing","OP Care Purchasing (Spot Placements)","R5420"
"Wolverhampton City Council","http://opendatacommunities.org/id/metropolitan-district-council/wolverhampton","702249","C M Community Care Services Limited","GBRI00520180509","152.46","TPP - Home Care","190455691","11/05/2018","Older People Care Purchasing","OP Care Purchasing (Spot Placements)","R5420"
"Wolverhampton City Council","http://opendatacommunities.org/id/metropolitan-district-council/wolverhampton","702249","C M Community Care Services Limited","PMOR01920180509","203.28","TPP - Home Care","190455701","11/05/2018","Older People Care Purchasing","OP Care Purchasing (Spot Placements)","R5420"
"Wolverhampton City Council","http://opendatacommunities.org/id/metropolitan-district-council/wolverhampton","702249","C M Community Care Services Limited","PMOR01920180509","203.28","TPP - Home Care","190455701","11/05/2018","Older People Care Purchasing","OP Care Purchasing (Spot Placements)","R5420"
"Wolverhampton City Council","http://opendatacommunities.org/id/metropolitan-district-council/wolverhampton","702249","C M Community Care Services Limited","GBRI00620180511","152.46","TPP - Home Care","190457462","16/05/2018","Older People Care Purchasing","OP Care Purchasing (Spot Placements)","R5420"
"Wolverhampton City Council","http://opendatacommunities.org/id/metropolitan-district-council/wolverhampton","702249","C M Community Care Services Limited","EWEB03720180511","203.28","TPP - Home Care","190457461","16/05/2018","Older People Care Purchasing","OP Care Purchasing (Spot Placements)","R5420"
"Wolverhampton City Council","http://opendatacommunities.org/id/metropolitan-district-council/wolverhampton","702249","C M Community Care Services Limited","EWEB03720180511","203.28","TPP - Home Care","190457461","16/05/2018","Older People Care Purchasing","OP Care Purchasing (Spot Placements)","R5420"
"Wolverhampton City Council","http://opendatacommunities.org/id/metropolitan-district-council/wolverhampton","702249","C M Community Care Services Limited","MBEN02020180511","203.28","TPP - Home Care","190457467","16/05/2018","Older People Care Purchasing","OP Care Purchasing (Spot Placements)","R5420"
"Wolverhampton City Council","http://opendatacommunities.org/id/metropolitan-district-council/wolverhampton","702249","C M Community Care Services Limited","MBEN02020180511","203.28","TPP - Home Care","190457467","16/05/2018","Older People Care Purchasing","OP Care Purchasing (Spot Placements)","R5420"
"Wolverhampton City Council","http://opendatacommunities.org/id/metropolitan-district-council/wolverhampton","702249","C M Community Care Services Limited","TLAM01720180511","152.46","TPP - Home Care","190457473","16/05/2018","Older People Care Purchasing","OP Care Purchasing (Spot Placements)","R5420"
"Wolverhampton City Council","http://opendatacommunities.org/id/metropolitan-district-council/wolverhampton","702249","C M Community Care Services Limited","TLAM01720180511","152.46","TPP - Home Care","190457473","16/05/2018","Older People Care Purchasing","OP Care Purchasing (Spot Placements)","R5420"
"Wolverhampton City Council","http://opendatacommunities.org/id/metropolitan-district-council/wolverhampton","702249","C M Community Care Services Limited","MBEN02120180518","203.28","TPP - Home Care","190459862","23/05/2018","Older People Care Purchasing","OP Care Purchasing (Spot Placements)","R5420"
"Wolverhampton City Council","http://opendatacommunities.org/id/metropolitan-district-council/wolverhampton","702249","C M Community Care Services Limited","MBEN02120180518","203.28","TPP - Home Care","190459862","23/05/2018","Older People Care Purchasing","OP Care Purchasing (Spot Placements)","R5420"
"Wolverhampton City Council","http://opendatacommunities.org/id/metropolitan-district-council/wolverhampton","702249","C M Community Care Services Limited","ABAT03420180518","203.28","TPP - Home Care","190459855","23/05/2018","Older People Care Purchasing","OP Care Purchasing (Spot Placements)","R5420"
"Wolverhampton City Council","http://opendatacommunities.org/id/metropolitan-district-council/wolverhampton","702249","C M Community Care Services Limited","ABAT03420180518","203.28","TPP - Home Care","190459855","23/05/2018","Older People Care Purchasing","OP Care Purchasing (Spot Placements)","R5420"
"Wolverhampton City Council","http://opendatacommunities.org/id/metropolitan-district-council/wolverhampton","702249","C M Community Care Services Limited","MMAL02420180518","174.24","TPP - Home Care","190459864","23/05/2018","Physical Disabilities Care Purchasing","PD Care Purchasing (Spot Placements)","R5420"
"Wolverhampton City Council","http://opendatacommunities.org/id/metropolitan-district-council/wolverhampton","702249","C M Community Care Services Limited","MMAL02420180518","174.24","TPP - Home Care","190459864","23/05/2018","Physical Disabilities Care Purchasing","PD Care Purchasing (Spot Placements)","R5420"
"Wolverhampton City Council","http://opendatacommunities.org/id/metropolitan-district-council/wolverhampton","702249","C M Community Care Services Limited","GBRI00720180518","152.46","TPP - Home Care","190459859","23/05/2018","Older People Care Purchasing","OP Care Purchasing (Spot Placements)","R5420"
"Wolverhampton City Council","http://opendatacommunities.org/id/metropolitan-district-council/wolverhampton","702249","C M Community Care Services Limited","MHAR01520180509","101.64","TPP - Home Care","190455697","11/05/2018","Older People Care Purchasing","OP Care Purchasing (Spot Placements)","R5420"
"Wolverhampton City Council","http://opendatacommunities.org/id/metropolitan-district-council/wolverhampton","702249","C M Community Care Services Limited","MHAR01520180509","101.64","TPP - Home Care","190455697","11/05/2018","Older People Care Purchasing","OP Care Purchasing (Spot Placements)","R5420"
"Wolverhampton City Council","http://opendatacommunities.org/id/metropolitan-district-council/wolverhampton","702249","C M Community Care Services Limited","NDON00420180517","203.28","TPP - Home Care","190459515","18/05/2018","Older People Care Purchasing","OP Care Purchasing (Spot Placements)","R5420"
"Wolverhampton City Council","http://opendatacommunities.org/id/metropolitan-district-council/wolverhampton","702249","C M Community Care Services Limited","NDON00420180517","203.28","TPP - Home Care","190459515","18/05/2018","Older People Care Purchasing","OP Care Purchasing (Spot Placements)","R5420"
"Wolverhampton City Council","http://opendatacommunities.org/id/metropolitan-district-council/wolverhampton","702269","Caci Limited (Social Software)","ES09863","11,400.17","Computing - Maint Agreements","130212915","04/05/2018","Youth Offending","Youth Offending Team","R4534"
"Wolverhampton City Council","http://opendatacommunities.org/id/metropolitan-district-council/wolverhampton","702269","Caci Limited (Social Software)","ES09876","950.00","Computing - Maint Agreements","130212624","09/05/2018","Youth Offending","Youth Offending Team","R4534"
"Wolverhampton City Council","http://opendatacommunities.org/id/metropolitan-district-council/wolverhampton","702273","Cale Access  UK Ltd (Cale Briparc)","132437","286.17","Equipment - R & M","130213947","04/05/2018","Parking Services","On Street Parking","R4003"
"Wolverhampton City Council","http://opendatacommunities.org/id/metropolitan-district-council/wolverhampton","702273","Cale Access  UK Ltd (Cale Briparc)","132567","420.75","Equipment - R & M","130216090","16/05/2018","Parking Services","On Street Parking","R4003"
"Wolverhampton City Council","http://opendatacommunities.org/id/metropolitan-district-council/wolverhampton","702273","Cale Access  UK Ltd (Cale Briparc)","132531","756.00","R&M - Departmental planned (external)","130215927","16/05/2018","Parking Services","New Cross Residential Parking","R2001"
"Wolverhampton City Council","http://opendatacommunities.org/id/metropolitan-district-council/wolverhampton","702273","Cale Access  UK Ltd (Cale Briparc)","132543","825.96","Equipment - R & M","130215928","16/05/2018","Parking Services","Car Parks Operational Staff","R4003"
"Wolverhampton City Council","http://opendatacommunities.org/id/metropolitan-district-council/wolverhampton","702273","Cale Access  UK Ltd (Cale Briparc)","132438","372.67","Equipment - R & M","130213948","09/05/2018","Parking Services","On Street Parking","R4003"
"Wolverhampton City Council","http://opendatacommunities.org/id/metropolitan-district-council/wolverhampton","702273","Cale Access  UK Ltd (Cale Briparc)","132666","55.85","Equipment - R & M","130216838","25/05/2018","Parking Services","On Street Parking","R4003"
"Wolverhampton City Council","http://opendatacommunities.org/id/metropolitan-district-council/wolverhampton","702306","Capita Business Serv Limited","6003765554","192,848.01","Computing - Maint Agreements","130215504","23/05/2018","ICTS","Strategic ICTS (ICT Service Budget)","R4534"
"Wolverhampton City Council","http://opendatacommunities.org/id/metropolitan-district-council/wolverhampton","702317","Capital Hair & Beauty Limited","02125550","1,650.00","Training Expenses","130217052","23/05/2018","Skills","IMPACT","R1650"
"Wolverhampton City Council","http://opendatacommunities.org/id/metropolitan-district-council/wolverhampton","702319","Capitol Mobility Services Limited","5349","72.00","Equipment - Purchase","130217450","30/05/2018","Parking Services","Shopmobility","R4000"
"Wolverhampton City Council","http://opendatacommunities.org/id/metropolitan-district-council/wolverhampton","702334","HAS Technology Limited","333070","6,683.24","Computing - Maint Agreements","130215479","11/05/2018","Older People Care Purchasing","OP Care Purchasing (Spot Placements)","R4534"
"Wolverhampton City Council","http://opendatacommunities.org/id/metropolitan-district-council/wolverhampton","702334","HAS Technology Limited","332354","6,772.42","Computing - Maint Agreements","130214394","23/05/2018","Older People Care Purchasing","OP Care Purchasing (Spot Placements)","R4534"
"Wolverhampton City Council","http://opendatacommunities.org/id/metropolitan-district-council/wolverhampton","702334","HAS Technology Limited","333772","7,574.70","Computing - Maint Agreements","130215190","11/05/2018","Older People Care Purchasing","OP Care Purchasing (Spot Placements)","R4534"
"Wolverhampton City Council","http://opendatacommunities.org/id/metropolitan-district-council/wolverhampton","702343","Care4Health Limited","142444","1,383.30","Agency Staff","130193543","02/05/2018","Adults Assessment & Care Management West","Promoting Independence Project Team","R1100"
"Wolverhampton City Council","http://opendatacommunities.org/id/metropolitan-district-council/wolverhampton","702355","Caritas Care Limited","17064","1,194.00","TPP - Payments to voluntary groups","130214721","04/05/2018","Looked After Children","Adoption and Residence Team & Allowances","R5200"
"Wolverhampton City Council","http://opendatacommunities.org/id/metropolitan-district-council/wolverhampton","702356","Caritas Recruitment Limited","3078610","1,350.00","Agency Staff","130212447","02/05/2018","Child Protection","MASH","R1100"
"Wolverhampton City Council","http://opendatacommunities.org/id/metropolitan-district-council/wolverhampton","702356","Caritas Recruitment Limited","3078961","1,327.50","Agency Staff","130213315","30/05/2018","Child Protection","MASH","R1100"
"Wolverhampton City Council","http://opendatacommunities.org/id/metropolitan-district-council/wolverhampton","702356","Caritas Recruitment Limited","3077742","1,665.00","Agency Staff","130212916","11/05/2018","Child Protection","MASH","R1100"
"Wolverhampton City Council","http://opendatacommunities.org/id/metropolitan-district-council/wolverhampton","702356","Caritas Recruitment Limited","3079247","1,665.00","Agency Staff","130213814","16/05/2018","Child Protection","MASH","R1100"
"Wolverhampton City Council","http://opendatacommunities.org/id/metropolitan-district-council/wolverhampton","702372","C�Art Art Transport Limited","116818","625.00","Services - Professional Fees","130214395","23/05/2018","Visitor Economy","Collections","R4400"
"Wolverhampton City Council","http://opendatacommunities.org/id/metropolitan-district-council/wolverhampton","702376","Cartridge Save Limited","INVR99211","35.30","Equipment - Purchase","130216841","23/05/2018","Bereavement Services","Cemeteries","R4000"
"Wolverhampton City Council","http://opendatacommunities.org/id/metropolitan-district-council/wolverhampton","702380","Carver (Wolverhampton) Limited","PSINV01001566222","20.92","Materials","130216325","18/05/2018","Bereavement Services","Cemeteries","R4007"
"Wolverhampton City Council","http://opendatacommunities.org/id/metropolitan-district-council/wolverhampton","702380","Carver (Wolverhampton) Limited","PSINV01001566222","8.50","Materials","130216325","18/05/2018","Bereavement Services","Cemeteries","R4007"
"Wolverhampton City Council","http://opendatacommunities.org/id/metropolitan-district-council/wolverhampton","702380","Carver (Wolverhampton) Limited","PSINV01001566222","156.72","Materials","130216325","18/05/2018","Bereavement Services","Cemeteries","R4007"
"Wolverhampton City Council","http://opendatacommunities.org/id/metropolitan-district-council/wolverhampton","702380","Carver (Wolverhampton) Limited","PSINV01001556714","563.79","Materials","130213950","11/05/2018","Street Lighting","Street Lighting Maintenance","R4007"
"Wolverhampton City Council","http://opendatacommunities.org/id/metropolitan-district-council/wolverhampton","702380","Carver (Wolverhampton) Limited","PSINV01001570584","123.30","Materials","130217053","23/05/2018","Bereavement Services","Cemeteries","R4007"
"Wolverhampton City Council","http://opendatacommunities.org/id/metropolitan-district-council/wolverhampton","702380","Carver (Wolverhampton) Limited","PSINV01001570587","123.30","Materials","130217054","23/05/2018","Bereavement Services","Cemeteries","R4007"
"Wolverhampton City Council","http://opendatacommunities.org/id/metropolitan-district-council/wolverhampton","702380","Carver (Wolverhampton) Limited","PSINV01001566217","164.50","Materials","130216092","16/05/2018","Environmental Maintenance","Ground Maintenance East","R4007"
"Wolverhampton City Council","http://opendatacommunities.org/id/metropolitan-district-council/wolverhampton","702380","Carver (Wolverhampton) Limited","PSINV01001560769","117.88","Materials","130215191","11/05/2018","Maintenance Programme","Civic Centre Repairs & Maintenance","R4007"
"Wolverhampton City Council","http://opendatacommunities.org/id/metropolitan-district-council/wolverhampton","702395","Catch 22 Charity Limited-Midlands&North.","57096","770.00","Education trips, Holidays, Outings & Activities","130213317","11/05/2018","Early Intervention","EIP Locality 3 - Graiseley","R4970"
"Wolverhampton City Council","http://opendatacommunities.org/id/metropolitan-district-council/wolverhampton","702396","Cater Walsh Reporting Ltd","109661","95.50","Services - Professional Fees","130215359","16/05/2018","Legal Services","Centralised External Legal Costs","R4400"
"Wolverhampton City Council","http://opendatacommunities.org/id/metropolitan-district-council/wolverhampton","702396","Cater Walsh Reporting Ltd","109671","125.45","Services - Professional Fees","130214722","23/05/2018","Legal Services","Centralised External Legal Costs","R4400"
"Wolverhampton City Council","http://opendatacommunities.org/id/metropolitan-district-council/wolverhampton","702396","Cater Walsh Reporting Ltd","109635","16.32","Services - Professional Fees","130215357","11/05/2018","Legal Services","Centralised External Legal Costs","R4400"
"Wolverhampton City Council","http://opendatacommunities.org/id/metropolitan-district-council/wolverhampton","702396","Cater Walsh Reporting Ltd","109595","150.75","Services - Professional Fees","130215930","16/05/2018","Legal Services","Centralised External Legal Costs","R4400"
"Wolverhampton City Council","http://opendatacommunities.org/id/metropolitan-district-council/wolverhampton","702396","Cater Walsh Reporting Ltd","109645","244.13","Services - Professional Fees","130215358","11/05/2018","Legal Services","Centralised External Legal Costs","R4400"
"Wolverhampton City Council","http://opendatacommunities.org/id/metropolitan-district-council/wolverhampton","702396","Cater Walsh Reporting Ltd","109591","46.50","Services - Professional Fees","130215929","16/05/2018","Legal Services","Centralised External Legal Costs","R4400"
"Wolverhampton City Council","http://opendatacommunities.org/id/metropolitan-district-council/wolverhampton","702396","Cater Walsh Reporting Ltd","109676","27.75","Services - Professional Fees","130215931","25/05/2018","Legal Services","Centralised External Legal Costs","R4400"
"Wolverhampton City Council","http://opendatacommunities.org/id/metropolitan-district-council/wolverhampton","702401","Caterpillars Nursery Co UK Limited","NEF Summer 2018 Inst 1","13,770.00","TPP - Private Nursery Education Funding","190459262","18/05/2018","Early Years","Early Years Universal Entitlement for 3 and 4 Year Olds","R5035"
"Wolverhampton City Council","http://opendatacommunities.org/id/metropolitan-district-council/wolverhampton","702401","Caterpillars Nursery Co UK Limited","#REF!","7,521.33","TPP - Private Nursery Education Funding","190459260","17/05/2018","Early Years","Early Years Universal Entitlement for 3 and 4 Year Olds","R5035"
"Wolverhampton City Council","http://opendatacommunities.org/id/metropolitan-district-council/wolverhampton","702401","Caterpillars Nursery Co UK Limited","TFT Summer 2018 Inst 1","3,961.44","TPP - Private Nursery Education Funding","190459261","18/05/2018","Early Years","Early Years Entitlement Funding for Disadvantaged 2 Year Olds","R5035"
"Wolverhampton City Council","http://opendatacommunities.org/id/metropolitan-district-council/wolverhampton","702401","Caterpillars Nursery Co UK Limited","NEF Spring 2018 Inst 2","1,980.72","TPP - Private Nursery Education Funding","190459259","18/05/2018","Early Years","Early Years Entitlement Funding for Disadvantaged 2 Year Olds","R5035"
"Wolverhampton City Council","http://opendatacommunities.org/id/metropolitan-district-council/wolverhampton","702401","Caterpillars Nursery Co UK Limited","Spring 2018 Inst 2 NEF","7,521.33","TPP - Private Nursery Education Funding","190459299","18/05/2018","Early Years","Early Years Universal Entitlement for 3 and 4 Year Olds","R5035"
"Wolverhampton City Council","http://opendatacommunities.org/id/metropolitan-district-council/wolverhampton","702413","CBRE Limited","50BR100048314","3,500.00","Services - Professional Fees","130214977","23/05/2018","City Development","City Development  - Core Team","R4400"
"Wolverhampton City Council","http://opendatacommunities.org/id/metropolitan-district-council/wolverhampton","702413","CBRE Limited","50BCD00042299","665.00","Services - Professional Fees","130212625","02/05/2018","City Development","City Centre Prospectus Regen Reserve","R4400"
"Wolverhampton City Council","http://opendatacommunities.org/id/metropolitan-district-council/wolverhampton","702413","CBRE Limited","50BR100048307","517.50","Services - Consultants","130214724","23/05/2018","Housing Revenue Account","HRA General","R4404"
"Wolverhampton City Council","http://opendatacommunities.org/id/metropolitan-district-council/wolverhampton","702413","CBRE Limited","50BR100042963","4,000.00","Services - Consultants","130214605","02/05/2018","Housing Revenue Account","HRA General","R4404"
"Wolverhampton City Council","http://opendatacommunities.org/id/metropolitan-district-council/wolverhampton","702413","CBRE Limited","50BR100048304","3,518.75","Services - Consultants","130214723","23/05/2018","Housing Revenue Account","HRA General","R4404"
"Wolverhampton City Council","http://opendatacommunities.org/id/metropolitan-district-council/wolverhampton","702413","CBRE Limited","50BR100042959","4,530.00","Services - Consultants","130214604","02/05/2018","Housing Revenue Account","HRA General","R4404"
"Wolverhampton City Council","http://opendatacommunities.org/id/metropolitan-district-council/wolverhampton","702418","Ccs Media Limited","3117567","389.38","Plant, Equipment, Machinery & Computer Hardware","130214606","02/05/2018","-","ICT General Programme","C3000"
"Wolverhampton City Council","http://opendatacommunities.org/id/metropolitan-district-council/wolverhampton","702418","Ccs Media Limited","3118029","2,051.96","Plant, Equipment, Machinery & Computer Hardware","130214607","02/05/2018","-","ICT General Programme","C3000"
"Wolverhampton City Council","http://opendatacommunities.org/id/metropolitan-district-council/wolverhampton","702435","Cent. Learn. PShip Trust T/A Woden","P17289120180504","600.00","Grant Payments to Individuals","190454802","09/05/2018","Looked After Children","LAC Education Team (LACE)","R6402"
"Wolverhampton City Council","http://opendatacommunities.org/id/metropolitan-district-council/wolverhampton","702435","Cent. Learn. PShip Trust T/A Woden","Woden Academy Early Years Payment Spring Term Final 1718","15,285.83","Grant Payments","190458584","18/05/2018","Schools","Academy Early years","R4700"
"Wolverhampton City Council","http://opendatacommunities.org/id/metropolitan-district-council/wolverhampton","702450","GO Carz","06610","119.50","Client Transport","130213512","02/05/2018","Emergency Duty Team","Emergency Duty Team","R3042"
"Wolverhampton City Council","http://opendatacommunities.org/id/metropolitan-district-council/wolverhampton","702450","GO Carz","11273","58.00","Client Transport","130216188","25/05/2018","Special Educational Needs","Primary - Transport","R3042"
"Wolverhampton City Council","http://opendatacommunities.org/id/metropolitan-district-council/wolverhampton","702450","GO Carz","11279","73.80","Client Transport","130216193","25/05/2018","Special Educational Needs","Secondary- Transport","R3042"
"Wolverhampton City Council","http://opendatacommunities.org/id/metropolitan-district-council/wolverhampton","702450","GO Carz","11260","10.68","Section 17","130215935","25/05/2018","Child Protection","CIN/CP Social Work Unit - Area 4","R6403"
"Wolverhampton City Council","http://opendatacommunities.org/id/metropolitan-district-council/wolverhampton","702450","GO Carz","10984","1,000.00","Client Transport","130216186","25/05/2018","Special Educational Needs","Special - Transport","R3042"
"Wolverhampton City Council","http://opendatacommunities.org/id/metropolitan-district-council/wolverhampton","702450","GO Carz","10980","300.00","Client Transport","130216183","25/05/2018","Special Educational Needs","Secondary- Transport","R3042"
"Wolverhampton City Council","http://opendatacommunities.org/id/metropolitan-district-council/wolverhampton","702450","GO Carz","10982","370.00","Client Transport","130216185","25/05/2018","Special Educational Needs","Secondary- Transport","R3042"
"Wolverhampton City Council","http://opendatacommunities.org/id/metropolitan-district-council/wolverhampton","702450","GO Carz","11282","112.16","Client Transport","130216195","25/05/2018","Special Educational Needs","Special - Transport","R3042"
"Wolverhampton City Council","http://opendatacommunities.org/id/metropolitan-district-council/wolverhampton","702450","GO Carz","11320","948.20","Client Transport","130216197","25/05/2018","Special Educational Needs","Primary - Transport","R3042"
"Wolverhampton City Council","http://opendatacommunities.org/id/metropolitan-district-council/wolverhampton","702450","GO Carz","11281","65.84","Section 17","130215936","30/05/2018","Child Protection","CIN/CP Social Work Unit - Area 3","R6403"
"Wolverhampton City Council","http://opendatacommunities.org/id/metropolitan-district-council/wolverhampton","702450","GO Carz","07642","517.88","Client Transport","130191292","09/05/2018","Child Protection","CIN/CP Social Work Unit - Area 3","R3042"
"Wolverhampton City Council","http://opendatacommunities.org/id/metropolitan-district-council/wolverhampton","702450","GO Carz","11063","18.60","Client Transport","130215934","25/05/2018","Emergency Duty Team","Emergency Duty Team","R3042"
"Wolverhampton City Council","http://opendatacommunities.org/id/metropolitan-district-council/wolverhampton","702450","GO Carz","11007","4.80","Client Transport","130216683","25/05/2018","Early Intervention","EIP Locality 2 � Bilston/Rocket Pool","R3042"
"Wolverhampton City Council","http://opendatacommunities.org/id/metropolitan-district-council/wolverhampton","702450","GO Carz","11280","37.00","Client Transport","130216194","25/05/2018","Special Educational Needs","Secondary- Transport","R3042"
"Wolverhampton City Council","http://opendatacommunities.org/id/metropolitan-district-council/wolverhampton","702450","GO Carz","11275","88.71","Client Transport","130216190","25/05/2018","Special Educational Needs","Special - Transport","R3042"
"Wolverhampton City Council","http://opendatacommunities.org/id/metropolitan-district-council/wolverhampton","702450","GO Carz","07280","2,030.00","Client Transport","130187737","16/05/2018","Child Protection","CIN/CP Social Work Unit - Area 7","R3042"
"Wolverhampton City Council","http://opendatacommunities.org/id/metropolitan-district-council/wolverhampton","702450","GO Carz","10977","798.39","Client Transport","130216181","25/05/2018","Special Educational Needs","Special - Transport","R3042"
"Wolverhampton City Council","http://opendatacommunities.org/id/metropolitan-district-council/wolverhampton","702450","GO Carz","10974","430.00","Client Transport","130216178","25/05/2018","Special Educational Needs","Primary - Transport","R3042"
"Wolverhampton City Council","http://opendatacommunities.org/id/metropolitan-district-council/wolverhampton","702450","GO Carz","10981","738.00","Client Transport","130216184","25/05/2018","Special Educational Needs","Secondary- Transport","R3042"
"Wolverhampton City Council","http://opendatacommunities.org/id/metropolitan-district-council/wolverhampton","702450","GO Carz","11274","50.00","Client Transport","130216189","25/05/2018","Special Educational Needs","Secondary- Transport","R3042"
"Wolverhampton City Council","http://opendatacommunities.org/id/metropolitan-district-council/wolverhampton","702450","GO Carz","11278","30.00","Client Transport","130216192","25/05/2018","Special Educational Needs","Secondary- Transport","R3042"
"Wolverhampton City Council","http://opendatacommunities.org/id/metropolitan-district-council/wolverhampton","702450","GO Carz","07386","222.60","Client Transport","130211964","02/05/2018","Child Protection","CIN/CP S17  SW Unit - Area 3","R3042"
"Wolverhampton City Council","http://opendatacommunities.org/id/metropolitan-district-council/wolverhampton","702450","GO Carz","10976","450.00","Client Transport","130216180","25/05/2018","Special Educational Needs","Secondary- Transport","R3042"
"Wolverhampton City Council","http://opendatacommunities.org/id/metropolitan-district-council/wolverhampton","702450","GO Carz","10979","675.90","Client Transport","130216182","25/05/2018","Special Educational Needs","Special - Transport","R3042"
"Wolverhampton City Council","http://opendatacommunities.org/id/metropolitan-district-council/wolverhampton","702450","GO Carz","11319","946.00","Client Transport","130216196","25/05/2018","Special Educational Needs","Primary - Transport","R3042"
"Wolverhampton City Council","http://opendatacommunities.org/id/metropolitan-district-council/wolverhampton","702450","GO Carz","10975","580.00","Client Transport","130216179","25/05/2018","Special Educational Needs","Primary - Transport","R3042"
"Wolverhampton City Council","http://opendatacommunities.org/id/metropolitan-district-council/wolverhampton","702450","GO Carz","11272","43.00","Client Transport","130216187","25/05/2018","Special Educational Needs","Primary - Transport","R3042"
"Wolverhampton City Council","http://opendatacommunities.org/id/metropolitan-district-council/wolverhampton","702450","GO Carz","11277","67.59","Client Transport","130216191","25/05/2018","Special Educational Needs","Special - Transport","R3042"
"Wolverhampton City Council","http://opendatacommunities.org/id/metropolitan-district-council/wolverhampton","702452","Central Workwear","4241","38.00","Clothing / Uniforms","130215685","30/05/2018","Transportation","School Crossing Patrol","R4201"
"Wolverhampton City Council","http://opendatacommunities.org/id/metropolitan-district-council/wolverhampton","702452","Central Workwear","4241","24.00","Clothing / Uniforms","130215685","30/05/2018","Transportation","School Crossing Patrol","R4201"
"Wolverhampton City Council","http://opendatacommunities.org/id/metropolitan-district-council/wolverhampton","702452","Central Workwear","4241","4.00","Clothing / Uniforms","130215685","30/05/2018","Transportation","School Crossing Patrol","R4201"
"Wolverhampton City Council","http://opendatacommunities.org/id/metropolitan-district-council/wolverhampton","702452","Central Workwear","4238","1,035.45","Laundry Expenses","130214725","23/05/2018","Catering","Education Catering - General Overheads","R4202"
"Wolverhampton City Council","http://opendatacommunities.org/id/metropolitan-district-council/wolverhampton","702456","Centre For Public Scrutiny","41003020","130.00","Training Expenses","130217586","30/05/2018","Public Service Reform","Centralised Training","R1650"
"Wolverhampton City Council","http://opendatacommunities.org/id/metropolitan-district-council/wolverhampton","702484","Charles Endirect Limited","080845","3,125.60","Equipment - Purchase","130215194","11/05/2018","Street Lighting","Street Lighting Maintenance","R4000"
"Wolverhampton City Council","http://opendatacommunities.org/id/metropolitan-district-council/wolverhampton","702484","Charles Endirect Limited","080754","2,140.00","Materials","130215192","04/05/2018","Street Lighting","Street Lighting Maintenance","R4007"
"Wolverhampton City Council","http://opendatacommunities.org/id/metropolitan-district-council/wolverhampton","702484","Charles Endirect Limited","080754","673.50","Materials","130215192","04/05/2018","Street Lighting","Street Lighting Maintenance","R4007"
"Wolverhampton City Council","http://opendatacommunities.org/id/metropolitan-district-council/wolverhampton","702484","Charles Endirect Limited","080754","781.00","Materials","130215192","04/05/2018","Street Lighting","Street Lighting Maintenance","R4007"
"Wolverhampton City Council","http://opendatacommunities.org/id/metropolitan-district-council/wolverhampton","702484","Charles Endirect Limited","080755","1,714.60","Equipment - Purchase","130215193","11/05/2018","Street Lighting","Street Lighting Maintenance","R4000"
"Wolverhampton City Council","http://opendatacommunities.org/id/metropolitan-district-council/wolverhampton","702494","Chartered Inst Environmental Health","ENET01923","490.00","Subscriptions","130216093","30/05/2018","Public Protection","EHTS Operational Costs","R4701"
"Wolverhampton City Council","http://opendatacommunities.org/id/metropolitan-district-council/wolverhampton","702497","Charterhouse Voice & Data PLC","T628907","326.45","Comms - Telephone Call charges","130213513","11/05/2018","ICTS","Strategic ICTS (ICT Service Budget)","R4505"
"Wolverhampton City Council","http://opendatacommunities.org/id/metropolitan-district-council/wolverhampton","702497","Charterhouse Voice & Data PLC","QUO-18930-N8G5X7","32,000.00","Computing - Maint Agreements","130214396","23/05/2018","ICTS","Strategic ICTS (ICT Service Budget)","R4534"
"Wolverhampton City Council","http://opendatacommunities.org/id/metropolitan-district-council/wolverhampton","702519","Child And Family Training Limited","919","2,050.00","Training Expenses","130217335","30/05/2018","Public Service Reform","Workforce Development","R1650"
"Wolverhampton City Council","http://opendatacommunities.org/id/metropolitan-district-council/wolverhampton","702530","Chipside Limited","S181780","160.00","Computing - Purchase of Hardware","130212741","04/05/2018","Parking Services","Parking Enforcement","R4530"
"Wolverhampton City Council","http://opendatacommunities.org/id/metropolitan-district-council/wolverhampton","702530","Chipside Limited","S181945","633.70","Computing - Purchase of Hardware","130217336","30/05/2018","Parking Services","Parking Enforcement","R4530"
"Wolverhampton City Council","http://opendatacommunities.org/id/metropolitan-district-council/wolverhampton","702543","Chubb Fire & Security Limited","6671795","693.43","Fixtures and Fittings - R&M","130215505","11/05/2018","Facilities Management","Civic Centre","R2502"
"Wolverhampton City Council","http://opendatacommunities.org/id/metropolitan-district-council/wolverhampton","702558","Cipfa Business Limited","3135760","1,600.00","Training Expenses","130213701","16/05/2018","Public Service Reform","Centralised Training","R1650"
"Wolverhampton City Council","http://opendatacommunities.org/id/metropolitan-district-council/wolverhampton","702561","Appello","PSMI941659","4,820.37","Equipment - R & M","130216200","16/05/2018","Independent Living Service","Telecare","R4003"
"Wolverhampton City Council","http://opendatacommunities.org/id/metropolitan-district-council/wolverhampton","702579","City Of Wolverhampton College","100449","420.00","Training Expenses","130214114","18/05/2018","Audit Services","Health & Safety","R1650"
"Wolverhampton City Council","http://opendatacommunities.org/id/metropolitan-district-council/wolverhampton","702579","City Of Wolverhampton College","100445","56,119.50","TPP - Alternative Provision of Education","130216095","16/05/2018","Special Educational Needs","Post 16 SEN Provision","R5037"
